Workbook

Sheet Info
A21: Creation Date | C21: 2024-07-16
A22: Client | C22: Australian Energy Market Commission
A23: Project | C23: Transmission Access Reform Stylised Model
A24: Description
A25: Author | C25: Endgame Economics
A26: Version | C26: 1

Sheet Table Of Contents
B1: ENDGAME Economics | AEMC transmission access reform | Stylised model
B2: Table Of Contents
B4: Sheet | C4: Description
B5: Instruction | C5: Instruction on setup and executing runs
B6: Input and Output >
B7: Radial | C7: Radial network input and output
B8: Radial with IC | C8: Radial with IC network input and output
B9: Mesh | C9: Mesh network input and output
B10: Model Formulation >
B11: Radial formulation | C11: Radial network formulation
B12: Radial IC formulation | C12: Radial with IC network formulation
B13: Mesh formulation | C13: Mesh network formulation

Sheet Instruction
B1: ENDGAME Economics | AEMC transmission access reform | Stylised model
B2: instruction
B4: Setup
B6: To enable Solver Add-in
B35: Executing simulation

Sheet Input and Output >

Sheet Radial
B1: ENDGAME Economics | AEMC transmission access reform | Stylised model
B2: Output ( 1 hour resolution)
B4: Global settings
B6: Priority level | C6: BPF ($/MWh) | L6: Colour guide
B7: 1 | C7: -1000 | M7: User inputs
B8: 2 | C8: -850 | M8: Model output - do not change
B9: 3 | C9: -700 | M9: Derived calculation - do not change
B10: 4 | C10: -550 | M10: Fixed parameter - do not change
B12: General assumptions | C12: $/MWh
B13: VOLL | C13: 17500
B16: User inputs
B18: Scenario 1 | K18: Scenario 2
B20: Demand (RRN) | C20: MW | K20: Demand (RRN) | L20: MW
B21: 1 | C21: 250 | K21: 1 | L21: 250
C23: RHS | D23: LHS | L23: RHS | M23: LHS
B24: Transfer Cosntraint | C24: Rating (MW) | D24: Unit 1 | E24: Unit 2 | F24: Unit 3 | G24: Unit 4 | K24: Transfer Cosntraint | L24: Rating (MW) | M24: Unit 1 | N24: Unit 2 | O24: Unit 3 | P24: Unit 4
B25: 1 | C25: 120 | E25: 1 | F25: 0.8 | G25: 0.6 | K25: 1 | L25: 100 | N25: 1 | O25: 1 | P25: 1
B27: Unit Specification | C27: Capacity (MW) | D27: SRMC ($/MWh) | E27: Is load | F27: CRM participation | G27: CRM Strategic bid | K27: Unit Specification | L27: Capacity (MW) | M27: SRMC ($/MWh) | N27: Is load | O27: CRM participation | P27: CRM Strategic bid
B28: 1 | C28: 300 | D28: 80 | E28: FALSE | F28: TRUE | G28: 80 | K28: 1 | L28: 200 | M28: 50 | N28: FALSE | O28: TRUE | P28: 100
B29: 2 | C29: 100 | D29: 25 | E29: FALSE | F29: TRUE | G29: 25 | K29: 2 | L29: 100 | M29: 0 | N29: FALSE | O29: TRUE | P29: 30
B30: 3 | C30: 100 | D30: 15 | E30: FALSE | F30: TRUE | G30: 20 | K30: 3 | L30: 100 | M30: 10 | N30: FALSE | O30: TRUE | P30: 50
B31: 4 | C31: 100 | D31: 12 | E31: FALSE | F31: TRUE | G31: 12 | K31: 4 | L31: 50 | M31: 0 | N31: TRUE | O31: TRUE | P31: 15
B33: Unit Bidding | C33: Priority level | D33: Access run bidding strategy | E33: CRM bidding strategy | F33: Access run bid ($/MWh) | G33: CRM bid ($/MWh) | K33: Unit Bidding | L33: Priority level | M33: Access run bidding strategy | N33: CRM bidding strategy | O33: Access run bid ($/MWh) | P33: CRM bid ($/MWh)
B34: 1 | C34: 1 | D34: SRMC | E34: SRMC | F34: =IF(D34 = "BPF",VLOOKUP(C34,$B$7:$C$10,2,FALSE),D28) -> 80 | G34: =IF(E34 = "SRMC",D28,G28) -> 80 | K34: 1 | L34: 1 | M34: SRMC | N34: SRMC | O34: =IF(M34 = "BPF",VLOOKUP(L34,$B$7:$C$10,2,FALSE),M28) -> 50 | P34: =IF(N34 = "SRMC",M28,P28) -> 50
B35: 2 | C35: 1 | D35: BPF | E35: SRMC | F35: =IF(D35 = "BPF",VLOOKUP(C35,$B$7:$C$10,2,FALSE),D29) -> -1000 | G35: =IF(E35 = "SRMC",D29,G29) -> 25 | K35: 2 | L35: 1 | M35: SRMC | N35: SRMC | O35: =IF(M35 = "BPF",VLOOKUP(L35,$B$7:$C$10,2,FALSE),M29) -> 0 | P35: =IF(N35 = "SRMC",M29,P29) -> 0
B36: 3 | C36: 3 | D36: BPF | E36: Strategic | F36: =IF(D36 = "BPF",VLOOKUP(C36,$B$7:$C$10,2,FALSE),D30) -> -700 | G36: =IF(E36 = "SRMC",D30,G30) -> 20 | K36: 3 | L36: 1 | M36: SRMC | N36: SRMC | O36: =IF(M36 = "BPF",VLOOKUP(L36,$B$7:$C$10,2,FALSE),M30) -> 10 | P36: =IF(N36 = "SRMC",M30,P30) -> 10
B37: 4 | C37: 4 | D37: BPF | E37: SRMC | F37: =IF(D37 = "BPF",VLOOKUP(C37,$B$7:$C$10,2,FALSE),D31) -> -550 | G37: =IF(E37 = "SRMC",D31,G31) -> 12 | K37: 4 | L37: 1 | M37: BPF | N37: Strategic | O37: =IF(M37 = "BPF",VLOOKUP(L37,$B$7:$C$10,2,FALSE),M31) -> -1000 | P37: =IF(N37 = "SRMC",M31,P31) -> 15
B39: Unit Contracts | C39: Type | D39: Volume (MW/hr) | E39: Strike price ($/MW/hr) | K39: Unit Contracts | L39: Type | M39: Volume (MW/hr) | N39: Strike price ($/MW/hr)
B40: 1 | C40: Cap | D40: 50 | E40: 300 | K40: 1 | L40: Cap | M40: 50 | N40: 90
B41: 2 | C41: Swap | D41: 50 | E41: 75 | K41: 2 | L41: Swap | M41: 100 | N41: 30
B42: 3 | C42: PPA | D42: 50 | E42: 50 | K42: 3 | L42: Swap | M42: 0 | N42: 30
B43: 4 | C43: PPA | D43: 50 | E43: 60 | K43: 4 | L43: Cap | M43: 50 | N43: 60
B46: Outputs
B50: CONTROL PANEL
B53: Scenario 1 | K53: Scenario 2
B55: Region | C55: RRP ($/MWh) | D55: Access USE (MW) | E55: Physical USE (MW) | K55: Region | L55: RRP ($/MWh) | M55: Access USE (MW) | N55: Physical USE (MW)
B56: 1 | C56: ='Radial formulation'!$K$30 -> 80 | D56: ='Radial formulation'!$G$16 -> 0 | E56: ='Radial formulation'!$G$54 -> 0 | K56: 1 | L56: ='Radial formulation'!$V$30 -> 50 | M56: ='Radial formulation'!$R$16 -> 0 | N56: ='Radial formulation'!$R$54 -> 0
B58: Transfer constraint | C58: Access LHS (MW) | D58: Physical LHS (MW) | K58: Transfer constraint | L58: Access LHS (MW) | M58: Physical LHS (MW)
B59: 1 | C59: ='Radial formulation'!$H$38 -> 120 | D59: ='Radial formulation'!$H$76 -> 120 | K59: 1 | L59: ='Radial formulation'!$S$38 -> 100 | M59: ='Radial formulation'!$S$76 -> 100
B61: Unit dispatch | C61: Region | D61: CRMP ($/MWh) | E61: Access Quantity (MW) | F61: Physical Quantity (MW) | G61: PQ - AQ | H61: Contracted Quantity (MW) | I61: Contract Payoff ($/MWh) | K61: Unit dispatch | L61: Region | M61: CRMP (MW) | N61: Access Quantity (MW) | O61: Physical Quantity (MW) | P61: PQ - AQ | Q61: Contracted Quantity (MW) | R61: Contract Payoff ($/MWh)
B62: 1 | C62: 1 | D62: =TRANSPOSE('Radial formulation'!$C$77:$F$77) -> 80 | E62: =TRANSPOSE('Radial formulation'!$C$16:$F$16) -> 116.6666667 | F62: =TRANSPOSE('Radial formulation'!$C$54:$F$54) -> 75 | G62: =F62-E62 -> -41.66666667 | H62: =IF(C40="PPA",MIN(D40,ABS(F62)),D40) * IF(E28,-1,1) -> 50 | I62: =IF(C40 = "Cap", MIN(E40-VLOOKUP(C62,B$56:C$56,2,FALSE),0), E40-VLOOKUP(C62,B$56:C$56,2,FALSE)) -> 0 | K62: 1 | L62: 1 | M62: =TRANSPOSE('Radial formulation'!$N$77:$Q$77) -> 50 | N62: =TRANSPOSE('Radial formulation'!$N$16:$Q$16) -> 150 | O62: =TRANSPOSE('Radial formulation'!$N$54:$Q$54) -> 150 | P62: =O62-N62 -> 0 | Q62: =IF(L40="PPA",MIN(M40,ABS(O62)),M40) * IF(N28,-1,1) -> 50 | R62: =IF(L40 = "Cap", MIN(N40-VLOOKUP(L62,K$56:L$56,2,FALSE),0), N40-VLOOKUP(L62,K$56:L$56,2,FALSE)) -> 0
B63: 2 | C63: 1 | D63: 5 | E63: 100 | F63: 0 | G63: =F63-E63 -> -100 | H63: =IF(C41="PPA",MIN(D41,ABS(F63)),D41) * IF(E29,-1,1) -> 50 | I63: =IF(C41 = "Cap", MIN(E41-VLOOKUP(C63,B$56:C$56,2,FALSE),0), E41-VLOOKUP(C63,B$56:C$56,2,FALSE)) -> -5 | K63: 2 | L63: 1 | M63: 10 | N63: 100 | O63: 100 | P63: =O63-N63 -> 0 | Q63: =IF(L41="PPA",MIN(M41,ABS(O63)),M41) * IF(N29,-1,1) -> 100 | R63: =IF(L41 = "Cap", MIN(N41-VLOOKUP(L63,K$56:L$56,2,FALSE),0), N41-VLOOKUP(L63,K$56:L$56,2,FALSE)) -> -20
B64: 3 | C64: 1 | D64: 20 | E64: 0 | F64: 75 | G64: =F64-E64 -> 75 | H64: =IF(C42="PPA",MIN(D42,ABS(F64)),D42) * IF(E30,-1,1) -> 50 | I64: -30 | K64: 3 | L64: 1 | M64: 10 | N64: 0 | O64: 50 | P64: 50 | Q64: =IF(L42="PPA",MIN(M42,ABS(O64)),M42) * IF(N30,-1,1) -> 0 | R64: -20
B65: 4 | C65: 1 | D65: 35 | E65: 33.33333333 | F65: 100 | G65: =F65-E65 -> 66.66666667 | H65: =IF(C43="PPA",MIN(D43,ABS(F65)),D43) * IF(E31,-1,1) -> 50 | I65: -20 | K65: 4 | L65: 1 | M65: 10 | N65: 0 | O65: 50 | P65: 50 | Q65: =IF(L43="PPA",MIN(M43,ABS(O65)),M43) * IF(N31,-1,1) -> -50 | R65: 0
B67: Unit financials | C67: Access revenue ($) | D67: CRM revenue ($) | E67: Pool revenue ($) | F67: Contract difference payment ($) | G67: Dispatch cost ($) | H67: Net profit ($) | K67: Unit financials | L67: Access revenue ($) | M67: CRM revenue ($) | N67: Pool revenue ($) | O67: Contract difference payment ($) | P67: Dispatch cost ($) | Q67: Net profit ($)
B68: 1 | C68: =E62 * VLOOKUP(C62,B$56:C$56,2,FALSE) -> 9333.333333 | D68: =G62*D62 -> -3333.333333 | E68: =C68+D68 -> 6000 | F68: =H62*I62 -> 0 | G68: =F62*D28 -> 6000 | H68: =SUM(E68:F68) - G68 -> 0 | K68: 1 | L68: =N62 * VLOOKUP(L62,K$56:L$56,2,FALSE) -> 7500 | M68: =P62*M62 -> 0 | N68: =L68+M68 -> 7500 | O68: =Q62*R62 -> 0 | P68: 0 | Q68: =SUM(N68:O68) - P68 -> 7500
B69: 2 | C69: =E63 * VLOOKUP(C63,B$56:C$56,2,FALSE) -> 8000 | D69: =G63*D63 -> -500 | E69: =C69+D69 -> 7500 | F69: =H63*I63 -> -250 | G69: =F63*D29 -> 0 | H69: =SUM(E69:F69) - G69 -> 7250 | K69: 2 | L69: =N63 * VLOOKUP(L63,K$56:L$56,2,FALSE) -> 5000 | M69: =P63*M63 -> 0 | N69: =L69+M69 -> 5000 | O69: =Q63*R63 -> -2000 | P69: =O63*M29 -> 0 | Q69: =SUM(N69:O69) - P69 -> 3000
B70: 3 | C70: 0 | D70: 1500 | E70: 1500 | F70: =H64*I64 -> -1500 | G70: =F64*D30 -> 1125 | H70: =SUM(E70:F70) - G70 -> -1125 | K70: 3 | L70: 0 | M70: 500 | N70: 500 | O70: =Q64*R64 -> 0 | P70: =O64*M30 -> 500 | Q70: =SUM(N70:O70) - P70 -> 0
B71: 4 | C71: 2666.666667 | D71: 2333.333333 | E71: 5000 | F71: =H65*I65 -> -1000 | G71: =F65*D31 -> 1200 | H71: 2800 | K71: 4 | L71: 0 | M71: 500 | N71: 500 | O71: =Q65*R65 -> 0 | P71: =O65*M31 -> 0 | Q71: =SUM(N71:O71) - P71 -> 500
B72: Total | C72: =SUM(C68:C71) -> 20000 | D72: =SUM(D68:D71) -> 0 | E72: 20000 | F72: -2750 | G72: 8325 | H72: 8925 | K72: Total | L72: =SUM(L68:L71) -> 12500 | M72: 1000 | N72: 13500 | O72: -2000 | P72: 500 | Q72: 11000
B75: Scenario 1 | K75: Scenario 2
B81: ="$"&ROUND(TRANSPOSE(s1u1_crmp),0) &"/MWh" -> $80/MWh | K81: ="$"&ROUND(TRANSPOSE(s2u1_crmp),0) &"/MWh" -> $50/MWh
B82: =ROUND(TRANSPOSE(s1u1_dispatch),0)&"MW" -> 117MW | K82: =ROUND(TRANSPOSE(s2u1_dispatch),0)&"MW" -> 150MW | Q82: ="$"&ROUND(TRANSPOSE(s2u2_crmp),0) &"/MWh" -> $10/MWh
B83: 75MW | H83: ="$"&ROUND(TRANSPOSE(s1u2_crmp),0) &"/MWh" -> $5/MWh | K83: 150MW | Q83: =ROUND(TRANSPOSE(s2u2_dispatch),0)&"MW" -> 100MW
H84: =ROUND(TRANSPOSE(s1u2_dispatch),0)&"MW" -> 100MW | Q84: 100MW
H85: 0MW
C87: ="$"&ROUND(TRANSPOSE(s1n1_price),0) &"/MWh" -> $80/MWh | L87: ="$"&ROUND(TRANSPOSE(s2n1_price),0) &"/MWh" -> $50/MWh
R89: ="$"&ROUND(TRANSPOSE(s2u3_crmp),0) &"/MWh" -> $10/MWh
R90: =ROUND(TRANSPOSE(s2u3_dispatch),0)&"MW" -> 0MW
I91: ="$"&ROUND(TRANSPOSE(s1u3_crmp),0) &"/MWh" -> $20/MWh | R91: 50MW
E92: =ROUND(TRANSPOSE(s1l1_flow),0)&"MW" -> 120MW | I92: =ROUND(TRANSPOSE(s1u3_dispatch),0)&"MW" -> 0MW | N92: =ROUND(TRANSPOSE(s2l1_flow),0)&"MW" -> 100MW
E93: 120MW | I93: 75MW | N93: 100MW
C95: =ROUND(s1n1_demand,0)&"MW" -> 250MW | L95: =ROUND(s2n1_demand,0)&"MW" -> 250MW
C96: =ROUND(TRANSPOSE(s1n1_use),0)&"MW" -> 0MW | L96: =ROUND(TRANSPOSE(s2n1_use),0)&"MW" -> 0MW
C97: 0MW | L97: 0MW
Q98: ="$"&ROUND(TRANSPOSE(s2u4_crmp),0) &"/MWh" -> $10/MWh
H99: ="$"&ROUND(TRANSPOSE(s1u4_crmp),0) &"/MWh" -> $35/MWh | Q99: =ROUND(TRANSPOSE(s2u4_dispatch),0)&"MW" -> 0MW
H100: =ROUND(TRANSPOSE(s1u4_dispatch),0)&"MW" -> 33MW | Q100: 50MW
C101: Load | H101: 100MW
B102: Access Quantity | C102: Access USE | D102: RRP
B103: Physical Quantity | C103: Physical USE | D103: CRMP
B107: Sheet end

Sheet Radial with IC
B1: ENDGAME Economics | AEMC transmission access reform | Stylised model
B2: Output ( 1 hour resolution)
B4: Global settings
B6: Priority level | C6: BPF ($/MWh) | L6: Colour guide
B7: 1 | C7: -1000 | M7: User inputs
B8: 2 | C8: -850 | M8: Model output - do not change
B9: 3 | C9: -700 | M9: Derived calculation - do not change
B10: 4 | C10: -550 | M10: Fixed parameter - do not change
B11: 5 | C11: -400
B12: 6 | C12: -250
B14: General assumptions | C14: $/MWh
B15: VOLL | C15: 17500
B18: User inputs
B20: Scenario 1 | K20: Scenario 2
B22: Demand (RRN) | C22: MW | K22: Demand (RRN) | L22: MW
B23: 1 | C23: 500 | K23: 1 | L23: 200
B24: 2 | C24: 300 | K24: 2 | L24: 213
B26: Line | C26: Rating (MW) | K26: Line | L26: Rating (MW)
B27: 1 | C27: 90 | K27: 1 | L27: 300
C29: RHS | D29: LHS | L29: RHS | M29: LHS
B30: Transfer Cosntraint | C30: Rating (MW) | D30: Unit 1 | E30: Unit 2 | F30: Unit 3 | G30: Unit 4 | H30: Unit 5 | I30: Unit 6 | K30: Transfer Cosntraint | L30: Rating (MW) | M30: Unit 1 | N30: Unit 2 | O30: Unit 3 | P30: Unit 4 | Q30: Unit 5 | R30: Unit 6
B31: 1 | C31: 130 | E31: 1 | F31: 0.5 | K31: 1 | L31: 100 | N31: 1 | O31: 0.5
B32: 2 | C32: 100 | H32: 1 | I32: 0.5 | K32: 2 | L32: 150 | Q32: 1 | R32: 0.2
B34: Unit Specification | C34: Capacity (MW) | D34: SRMC ($/MWh) | E34: Is load | F34: CRM participation | G34: CRM Strategic bid | K34: Unit Specification | L34: Capacity (MW) | M34: SRMC ($/MWh) | N34: Is load | O34: CRM participation | P34: CRM Strategic bid
B35: 1 | C35: 400 | D35: 80 | E35: FALSE | F35: TRUE | G35: 100 | K35: 1 | L35: 400 | M35: 80 | N35: FALSE | O35: FALSE | P35: 0
B36: 2 | C36: 100 | D36: 30 | E36: FALSE | F36: TRUE | G36: 45 | K36: 2 | L36: 100 | M36: 30 | N36: FALSE | O36: FALSE | P36: 0
B37: 3 | C37: 100 | D37: 20 | E37: FALSE | F37: TRUE | G37: 50 | K37: 3 | L37: 100 | M37: 0 | N37: FALSE | O37: FALSE | P37: 0
B38: 4 | C38: 400 | D38: 150 | E38: FALSE | F38: TRUE | G38: 200 | K38: 4 | L38: 400 | M38: 150 | N38: FALSE | O38: FALSE | P38: 0
B39: 5 | C39: 100 | D39: 10 | E39: FALSE | F39: TRUE | G39: 50 | K39: 5 | L39: 100 | M39: 10 | N39: FALSE | O39: FALSE | P39: 0
B40: 6 | C40: 100 | D40: 0 | E40: FALSE | F40: TRUE | G40: 30 | K40: 6 | L40: 100 | M40: 0 | N40: FALSE | O40: TRUE | P40: 0
B42: Unit Bidding | C42: Priority level | D42: Access run bidding strategy | E42: CRM bidding strategy | F42: Access run bid ($/MWh) | G42: CRM bid ($/MWh) | K42: Unit Bidding | L42: Priority level | M42: Access run bidding strategy | N42: CRM bidding strategy | O42: Access run bid ($/MWh) | P42: CRM bid ($/MWh)
B43: 1 | C43: 1 | D43: SRMC | E43: Strategic | F43: =IF(D43 = "BPF",VLOOKUP(C43,$B$7:$C$12,2,FALSE),D35) -> 80 | G43: =IF(E43 = "SRMC",D35,G35) -> 100 | K43: 1 | L43: 1 | M43: SRMC | N43: SRMC | O43: =IF(M43 = "BPF",VLOOKUP(L43,$B$7:$C$12,2,FALSE),M35) -> 80 | P43: =IF(N43 = "SRMC",M35,P35) -> 80
B44: 2 | C44: 4 | D44: BPF | E44: Strategic | F44: =IF(D44 = "BPF",VLOOKUP(C44,$B$7:$C$12,2,FALSE),D36) -> -550 | G44: =IF(E44 = "SRMC",D36,G36) -> 45 | K44: 2 | L44: 1 | M44: SRMC | N44: SRMC | O44: =IF(M44 = "BPF",VLOOKUP(L44,$B$7:$C$12,2,FALSE),M36) -> 30 | P44: =IF(N44 = "SRMC",M36,P36) -> 30
B45: 3 | C45: 1 | D45: BPF | E45: Strategic | F45: -1000 | G45: 50 | K45: 3 | L45: 4 | M45: SRMC | N45: Strategic | O45: 0 | P45: 0
B46: 4 | C46: 1 | D46: SRMC | E46: Strategic | F46: 150 | G46: 200 | K46: 4 | L46: 1 | M46: SRMC | N46: SRMC | O46: 150 | P46: 150
B47: 5 | C47: 1 | D47: BPF | E47: SRMC | F47: -1000 | G47: 10 | K47: 5 | L47: 1 | M47: BPF | N47: SRMC | O47: -1000 | P47: 10
B48: 6 | C48: 5 | D48: BPF | E48: SRMC | F48: -400 | G48: 0 | K48: 6 | L48: 6 | M48: SRMC | N48: SRMC | O48: 0 | P48: 0
B50: Unit Contracts | C50: Type | D50: Volume (MW/hr) | E50: Strike price ($/MW/hr) | K50: Unit Contracts | L50: Type | M50: Volume (MW/hr) | N50: Strike price ($/MW/hr)
B51: 1 | C51: Cap | D51: 200 | E51: 100 | K51: 1 | L51: Cap | M51: 200 | N51: 100
B52: 2 | C52: PPA | D52: 100 | E52: 45 | K52: 2 | L52: Swap | M52: 100 | N52: 70
B53: 3 | C53: PPA | D53: 100 | E53: 50 | K53: 3 | L53: PPA | M53: 100 | N53: 75
B54: 4 | C54: Cap | D54: 200 | E54: 200 | K54: 4 | L54: Cap | M54: 200 | N54: 200
B55: 5 | C55: PPA | D55: 0 | E55: 0 | K55: 5 | L55: PPA | M55: 100 | N55: 50
B56: 6 | C56: PPA | D56: 0 | E56: 0 | K56: 6 | L56: PPA | M56: 0 | N56: 0
B59: Outputs
B63: CONTROL PANEL
B66: Scenario 1 | K66: Scenario 2
B68: Region | C68: RRP ($/MWh) | D68: Access USE (MW) | E68: Physical USE (MW) | K68: Region | L68: RRP ($/MWh) | M68: Access USE (MW) | N68: Physical USE (MW)
B69: 1 | C69: ='Radial IC formulation'!O30 -> 150 | D69: =TRANSPOSE('Radial IC formulation'!$J$16:$K$16) -> 0 | E69: =TRANSPOSE('Radial IC formulation'!$J$56:$K$56) -> 0 | K69: 1 | L69: ='Radial IC formulation'!AD30 -> 80 | M69: =TRANSPOSE('Radial IC formulation'!$Y$16:$Z$16) -> 0 | N69: =TRANSPOSE('Radial IC formulation'!$Y$56:$Z$56) -> 0
B70: 2 | C70: ='Radial IC formulation'!O31 -> 150 | D70: 0 | E70: 0 | K70: 2 | L70: ='Radial IC formulation'!AD31 -> 80 | M70: 0 | N70: 0
B72: Line flow | C72: Access Run Flow (MW) | D72: Physical Flow (MW) | K72: Line flow | L72: Access Run Flow (MW) | M72: Physical Flow (MW)
B73: 1 | C73: ='Radial IC formulation'!$I$16 -> -80 | D73: ='Radial IC formulation'!I56 -> -80 | K73: 1 | L73: ='Radial IC formulation'!$X$16 -> -13 | M73: ='Radial IC formulation'!X56 -> -13
B75: Transfer constraint | C75: Access LHS (MW) | D75: Physical LHS (MW) | K75: Transfer constraint | L75: Access LHS (MW) | M75: Physical LHS (MW)
B76: 1 | C76: ='Radial IC formulation'!L39 -> 130 | D76: ='Radial IC formulation'!L79 -> 130 | K76: 1 | L76: ='Radial IC formulation'!AA39 -> 100 | M76: ='Radial IC formulation'!AA79 -> 100
B77: 2 | C77: ='Radial IC formulation'!L40 -> 100 | D77: ='Radial IC formulation'!L80 -> 100 | K77: 2 | L77: ='Radial IC formulation'!AA40 -> 120 | M77: ='Radial IC formulation'!AA80 -> 120
B79: Unit dispatch | C79: Region | D79: CRMP ($/MWh) | E79: Access Quantity (MW) | F79: Physical Quantity (MW) | G79: PQ - AQ | H79: Contracted Quantity (MW) | I79: Contract Payoff ($/MWh) | K79: Unit | L79: Region | M79: CRMP ($/MWh) | N79: Access Quantity (MW) | O79: Physical Quantity (MW) | P79: PQ - AQ | Q79: Contracted Quantity (MW) | R79: Contract Payoff ($/MWh)
B80: 1 | C80: 1 | D80: =TRANSPOSE('Radial IC formulation'!$C$81:$H$81) -> 200 | E80: =TRANSPOSE('Radial IC formulation'!$C$16:$H$16) -> 400 | F80: =TRANSPOSE('Radial IC formulation'!$C$56:$H$56) -> 400 | G80: =F80-E80 -> 0 | H80: =IF(C51="PPA",MIN(D51,ABS(F80)),D51) * IF(E35,-1,1) -> 200 | I80: =IF(C51 = "Cap", MIN(E51-VLOOKUP(C80,B$69:C$70,2,FALSE),0), E51-VLOOKUP(C80,B$69:C$70,2,FALSE)) -> -50 | K80: 1 | L80: 1 | M80: =TRANSPOSE('Radial IC formulation'!$R$81:$W$81) -> 0 | N80: =TRANSPOSE('Radial IC formulation'!$R$16:$W$16) -> 63 | O80: =TRANSPOSE('Radial IC formulation'!$R$56:$W$56) -> 63 | P80: =O80-N80 -> 0 | Q80: =IF(L51="PPA",MIN(M51,ABS(O80)),M51) * IF(N35,-1,1) -> 200 | R80: =IF(L51 = "Cap", MIN(N51-VLOOKUP(L80,K$69:L$70,2,FALSE),0), N51-VLOOKUP(L80,K$69:L$70,2,FALSE)) -> 0
B81: 2 | C81: 1 | D81: 45 | E81: 80 | F81: 80 | G81: =F81-E81 -> 0 | H81: 80 | I81: =IF(C52 = "Cap", MIN(E52-VLOOKUP(C81,B$69:C$70,2,FALSE),0), E52-VLOOKUP(C81,B$69:C$70,2,FALSE)) -> -105 | K81: 2 | L81: 1 | M81: 0 | N81: 50 | O81: 50 | P81: =O81-N81 -> 0 | Q81: =IF(L52="PPA",MIN(M52,ABS(O81)),M52) * IF(N36,-1,1) -> 100 | R81: =IF(L52 = "Cap", MIN(N52-VLOOKUP(L81,K$69:L$70,2,FALSE),0), N52-VLOOKUP(L81,K$69:L$70,2,FALSE)) -> -10
B82: 3 | C82: 1 | D82: 122.5 | E82: 100 | F82: 100 | G82: =F82-E82 -> 0 | H82: 100 | I82: -100 | K82: 3 | L82: 1 | M82: 0 | N82: 100 | O82: 100 | P82: 0 | Q82: 100 | R82: -5
B83: 4 | C83: 2 | D83: 200 | E83: 120 | F83: 70 | G83: -50 | H83: 200 | I83: 0 | K83: 4 | L83: 2 | M83: 0 | N83: 0 | O83: 0 | P83: 0 | Q83: 200 | R83: 0
B84: 5 | C84: 2 | D84: 10 | E84: 100 | F84: 50 | G84: =F84-E84 -> -50 | H84: 0 | I84: -150 | K84: 5 | L84: 2 | M84: 0 | N84: 100 | O84: 100 | P84: 0 | Q84: 100 | R84: -30
B85: 6 | C85: 2 | D85: 105 | E85: 0 | F85: 100 | G85: 100 | H85: 0 | I85: -150 | K85: 6 | L85: 2 | M85: 0 | N85: 100 | O85: 100 | P85: 0 | Q85: 0 | R85: -80
B87: Unit financials | C87: Access revenue ($) | D87: CRM revenue ($) | E87: Pool revenue ($) | F87: Contract difference payment ($) | G87: Dispatch cost ($) | H87: Net profit ($) | K87: Unit financials | L87: Access revenue ($) | M87: CRM revenue ($) | N87: Pool revenue ($) | O87: Contract difference payment ($) | P87: Dispatch cost ($) | Q87: Net profit ($)
B88: 1 | C88: =E80 * VLOOKUP(C80,B$69:C$70,2,FALSE) -> 60000 | D88: =G80*D80 -> 0 | E88: =C88+D88 -> 60000 | F88: =H80*I80 -> -10000 | G88: =F80*D35 -> 32000 | H88: =SUM(E88:F88) - G88 -> 18000 | K88: 1 | L88: =N80 * VLOOKUP(L80,K$69:L$70,2,FALSE) -> 5040 | M88: =P80*M80 -> 0 | N88: =L88+M88 -> 5040 | O88: =Q80*R80 -> 0 | P88: 0 | Q88: =SUM(N88:O88) - P88 -> 5040
B89: 2 | C89: =E81 * VLOOKUP(C81,B$69:C$70,2,FALSE) -> 12000 | D89: =G81*D81 -> 0 | E89: =C89+D89 -> 12000 | F89: -8400 | G89: =F81*D36 -> 2400 | H89: =SUM(E89:F89) - G89 -> 1200 | K89: 2 | L89: =N81 * VLOOKUP(L81,K$69:L$70,2,FALSE) -> 4000 | M89: =P81*M81 -> 0 | N89: =L89+M89 -> 4000 | O89: -1000 | P89: =O81*M36 -> 1500 | Q89: =SUM(N89:O89) - P89 -> 1500
B90: 3 | C90: 15000 | D90: 0 | E90: 15000 | F90: -10000 | G90: 2000 | H90: 3000 | K90: 3 | L90: 8000 | M90: 0 | N90: 8000 | O90: -500 | P90: =O82*M37 -> 0 | Q90: 7500
B91: 4 | C91: 18000 | D91: -10000 | E91: =C91+D91 -> 8000 | F91: 0 | G91: 10500 | H91: -2500 | K91: 4 | L91: 0 | M91: 0 | N91: 0 | O91: 0 | P91: =O83*M38 -> 0 | Q91: 0
B92: 5 | C92: 15000 | D92: -500 | E92: 14500 | F92: 0 | G92: 500 | H92: 14000 | K92: 5 | L92: 8000 | M92: 0 | N92: 8000 | O92: -3000 | P92: =O84*M39 -> 1000 | Q92: 4000
B93: 6 | C93: 0 | D93: 10500 | E93: 10500 | F93: 0 | G93: 0 | H93: 10500 | K93: 6 | L93: 8000 | M93: 0 | N93: 8000 | O93: 0 | P93: =O85*M40 -> 0 | Q93: 8000
B94: Total | C94: =SUM(C88:C93) -> 120000 | D94: =SUM(D88:D93) -> 0 | E94: 120000 | F94: -28400 | G94: 47400 | H94: 44200 | K94: Total | L94: =SUM(L88:L93) -> 33040 | M94: =SUM(M88:M93) -> 0 | N94: =SUM(N88:N93) -> 33040 | O94: =SUM(O88:O93) -> -4500 | P94: =SUM(P88:P93) -> 2500 | Q94: =SUM(Q88:Q93) -> 26040
B97: Scenario 1 | K97: Scenario 2
E100: =ROUND(s1n1_demand,0)&"MW" -> 500MW | H100: ="$"&ROUND(TRANSPOSE(s1u2_crmp),0) &"/MWh" -> $45/MWh | N100: =ROUND(s2n1_demand,0)&"MW" -> 200MW | Q100: ="$"&ROUND(TRANSPOSE(s2u2_crmp),0) &"/MWh" -> $0/MWh
E101: =ROUND(TRANSPOSE(s1n1_use),0)&"MW" -> 0MW | F101: ="$"&ROUND(TRANSPOSE(s1n1_price),0) &"/MWh" -> $150/MWh | H101: =ROUND(TRANSPOSE(s1u2_dispatch),0)&"MW" -> 80MW | N101: =ROUND(TRANSPOSE(s2n1_use),0)&"MW" -> 0MW | O101: ="$"&ROUND(TRANSPOSE(s2n1_price),0) &"/MWh" -> $80/MWh | Q101: =ROUND(TRANSPOSE(s2u2_dispatch),0)&"MW" -> 50MW
E102: 0MW | H102: 80MW | N102: 0MW | Q102: 50MW
F106: =ROUND(TRANSPOSE(s1l1_flow),0)&"MW" -> 130MW | O106: =ROUND(TRANSPOSE(s2l1_flow),0)&"MW" -> 100MW
F107: 130MW | O107: 100MW
D108: ="$"&ROUND(TRANSPOSE(s1u1_crmp),0) &"/MWh" -> $200/MWh | H108: ="$"&ROUND(TRANSPOSE(s1u3_crmp),0) &"/MWh" -> $123/MWh | M108: ="$"&ROUND(TRANSPOSE(s2u1_crmp),0) &"/MWh" -> $0/MWh | Q108: ="$"&ROUND(TRANSPOSE(s2u3_crmp),0) &"/MWh" -> $0/MWh
D109: =ROUND(TRANSPOSE(s1u1_dispatch),0)&"MW" -> 400MW | H109: =ROUND(TRANSPOSE(s1u3_dispatch),0)&"MW" -> 100MW | M109: =ROUND(TRANSPOSE(s2u1_dispatch),0)&"MW" -> 63MW | Q109: =ROUND(TRANSPOSE(s2u3_dispatch),0)&"MW" -> 100MW
D110: 400MW | H110: 100MW | M110: 63MW | Q110: 100MW
D112: =ROUND(TRANSPOSE(s1lc1_flow),0)&"MW" -> -80MW | M112: =ROUND(TRANSPOSE(s2lc1_flow),0)&"MW" -> -13MW
D113: -80MW | M113: -13MW
H116: ="$"&ROUND(TRANSPOSE(s1u5_crmp),0) &"/MWh" -> $10/MWh | Q116: ="$"&ROUND(TRANSPOSE(s2u5_crmp),0) &"/MWh" -> $0/MWh
H117: =ROUND(TRANSPOSE(s1u5_dispatch),0)&"MW" -> 100MW | Q117: =ROUND(TRANSPOSE(s2u5_dispatch),0)&"MW" -> 100MW
F118: ="$"&ROUND(TRANSPOSE(s1n2_price),0) &"/MWh" -> $150/MWh | H118: 50MW | O118: ="$"&ROUND(TRANSPOSE(s2n2_price),0) &"/MWh" -> $80/MWh | Q118: 100MW
F122: =ROUND(TRANSPOSE(s1l2_flow),0)&"MW" -> 100MW | O122: =ROUND(TRANSPOSE(s2l2_flow),0)&"MW" -> 120MW
D123: ="$"&ROUND(TRANSPOSE(s1u4_crmp),0) &"/MWh" -> $200/MWh | F123: 100MW | M123: ="$"&ROUND(TRANSPOSE(s2u4_crmp),0) &"/MWh" -> $0/MWh | O123: 120MW
D124: =ROUND(TRANSPOSE(s1u4_dispatch),0)&"MW" -> 120MW | E124: =ROUND(s1n2_demand,0)&"MW" -> 300MW | H124: ="$"&ROUND(TRANSPOSE(s1u6_crmp),0) &"/MWh" -> $105/MWh | M124: =ROUND(TRANSPOSE(s2u4_dispatch),0)&"MW" -> 0MW | N124: =ROUND(s2n2_demand,0)&"MW" -> 213MW | Q124: ="$"&ROUND(TRANSPOSE(s2u6_crmp),0) &"/MWh" -> $0/MWh
D125: 70MW | E125: =ROUND(TRANSPOSE(s1n2_use),0)&"MW" -> 0MW | H125: =ROUND(TRANSPOSE(s1u6_dispatch),0)&"MW" -> 0MW | M125: 0MW | N125: =ROUND(TRANSPOSE(s2n2_use),0)&"MW" -> 0MW | Q125: =ROUND(TRANSPOSE(s2u6_dispatch),0)&"MW" -> 100MW
E126: 0MW | H126: 100MW | N126: 0MW | Q126: 100MW
C128: Load
B129: Access Quantity | C129: Access USE | D129: RRP
B130: Physical Quantity | C130: Physical USE | D130: CRMP
B134: Sheet end

Sheet Mesh
B1: ENDGAME Economics | AEMC transmission access reform | Stylised model
B2: Output ( 1 hour resolution)
B4: Global settings
B6: Priority level | C6: BPF ($/MWh) | L6: Colour guide
B7: 1 | C7: -1000 | M7: User inputs
B8: 2 | C8: -850 | M8: Model output - do not change
B9: 3 | C9: -700 | M9: Derived calculation - do not change
B10: 4 | C10: -550 | M10: Fixed parameter - do not change
B11: 5 | C11: -400
B12: 6 | C12: -250
B14: General assumptions | C14: $/MWh
B15: VOLL | C15: 17500
B18: User inputs
B20: Scenario 1 | K20: Scenario 2
B22: Demand (node) | C22: MW | K22: Demand (node) | L22: MW
B23: 1 | C23: 50 | K23: 1 | L23: 50
B24: 2 | C24: 150 | K24: 2 | L24: 150
B25: 3 | C25: 50 | K25: 3 | L25: 50
B26: 4 | C26: 400 | K26: 4 | L26: 400
B27: 5 | C27: 50 | K27: 5 | L27: 50
B28: 6 | C28: 150 | K28: 6 | L28: 150
B31: Line | C31: Rating (MW) | K31: Line | L31: Rating (MW)
B32: 1 | C32: 200 | K32: 1 | L32: 200
B33: 2 | C33: 200 | K33: 2 | L33: 200
B34: 3 | C34: 250 | K34: 3 | L34: 200
B35: 4 | C35: 100 | K35: 4 | L35: 100
B36: 5 | C36: 200 | K36: 5 | L36: 200
B37: 6 | C37: 200 | K37: 6 | L37: 200
B39: Unit Specification | C39: Capacity (MW) | D39: SRMC ($/MWh) | E39: Is load | F39: CRM participation | G39: CRM Strategic bid | K39: Unit Specification | L39: Capacity (MW) | M39: SRMC ($/MWh) | N39: Is load | O39: CRM participation | P39: CRM Strategic bid
B40: 1 | C40: 200 | D40: 60 | E40: FALSE | F40: FALSE | G40: 0 | K40: 1 | L40: 200 | M40: 60 | N40: FALSE | O40: FALSE | P40: 0
B41: 2 | C41: 300 | D41: 105 | E41: FALSE | F41: TRUE | G41: 105 | K41: 2 | L41: 300 | M41: 100 | N41: FALSE | O41: TRUE | P41: 105
B42: 3 | C42: 200 | D42: 50 | E42: FALSE | F42: FALSE | G42: 0 | K42: 3 | L42: 200 | M42: 50 | N42: FALSE | O42: FALSE | P42: 0
B43: 4 | C43: 400 | D43: 100 | E43: FALSE | F43: TRUE | G43: 100 | K43: 4 | L43: 300 | M43: 150 | N43: FALSE | O43: TRUE | P43: 110
B44: 5 | C44: 200 | D44: 4 | E44: FALSE | F44: TRUE | G44: 50 | K44: 5 | L44: 200 | M44: 5 | N44: FALSE | O44: TRUE | P44: 40
B45: 6 | C45: 250 | D45: 10 | E45: FALSE | F45: TRUE | G45: 30 | K45: 6 | L45: 300 | M45: 10 | N45: FALSE | O45: TRUE | P45: 40
B47: Unit Bidding | C47: Priority level | D47: Access run bidding strategy | E47: CRM bidding strategy | F47: Access run bid ($/MWh) | G47: CRM bid ($/MWh) | K47: Unit Bidding | L47: Priority level | M47: Access run bidding strategy | N47: CRM bidding strategy | O47: Access run bid ($/MWh) | P47: CRM bid ($/MWh)
B48: 1 | C48: 1 | D48: SRMC | E48: SRMC | F48: =IF(D48 = "BPF",VLOOKUP(C48,$B$7:$C$12,2,FALSE),D40) -> 60 | G48: =IF(E48 = "SRMC",D40,G40) -> 60 | K48: 1 | L48: 1 | M48: SRMC | N48: SRMC | O48: =IF(M48 = "BPF",VLOOKUP(L48,$B$7:$C$12,2,FALSE),M40) -> 60 | P48: =IF(N48 = "SRMC",M40,P40) -> 60
B49: 2 | C49: 1 | D49: SRMC | E49: SRMC | F49: =IF(D49 = "BPF",VLOOKUP(C49,$B$7:$C$12,2,FALSE),D41) -> 105 | G49: =IF(E49 = "SRMC",D41,G41) -> 105 | K49: 2 | L49: 1 | M49: SRMC | N49: Strategic | O49: =IF(M49 = "BPF",VLOOKUP(L49,$B$7:$C$12,2,FALSE),M41) -> 100 | P49: =IF(N49 = "SRMC",M41,P41) -> 105
B50: 3 | C50: 1 | D50: SRMC | E50: SRMC | F50: 50 | G50: 50 | K50: 3 | L50: 1 | M50: SRMC | N50: SRMC | O50: 50 | P50: 50
B51: 4 | C51: 1 | D51: SRMC | E51: SRMC | F51: 100 | G51: 100 | K51: 4 | L51: 1 | M51: SRMC | N51: Strategic | O51: 150 | P51: 110
B52: 5 | C52: 1 | D52: BPF | E52: SRMC | F52: -1000 | G52: 4 | K52: 5 | L52: 1 | M52: BPF | N52: SRMC | O52: -1000 | P52: 5
B53: 6 | C53: 5 | D53: BPF | E53: SRMC | F53: -400 | G53: 10 | K53: 6 | L53: 5 | M53: BPF | N53: SRMC | O53: -400 | P53: 10
B55: Unit Contracts | C55: Type | D55: Volume (MW/hr) | E55: Strike price ($/MW/hr) | K55: Unit Contracts | L55: Type | M55: Volume (MW/hr) | N55: Strike price ($/MW/hr)
B56: 1 | C56: Swap | D56: 15 | E56: 65 | K56: 1 | L56: Swap | M56: 15 | N56: 65
B57: 2 | C57: Cap | D57: 100 | E57: 100 | K57: 2 | L57: Cap | M57: 100 | N57: 105
B58: 3 | C58: Swap | D58: 10 | E58: 60 | K58: 3 | L58: Swap | M58: 10 | N58: 60
B59: 4 | C59: Cap | D59: 100 | E59: 100 | K59: 4 | L59: Cap | M59: 100 | N59: 110
B60: 5 | C60: PPA | D60: 200 | E60: 40 | K60: 5 | L60: PPA | M60: 200 | N60: 40
B61: 6 | C61: PPA | D61: 250 | E61: 40 | K61: 6 | L61: PPA | M61: 250 | N61: 40
B64: Outputs
B68: CONTROL PANEL
B71: Scenario 1 | K71: Scenario 2
B73: Node | C73: Region | D73: RRP ($/MWh) | E73: CRMP ($/MWh) | F73: Access USE (MW) | G73: Physical USE (MW) | K73: Node prices | L73: Region | M73: RRP ($/MWh) | N73: CRMP ($/MWh) | O73: Access USE (MW) | P73: Physical USE (MW)
B74: 1 | C74: 1 | D74: ='Mesh formulation'!$X$53 -> 100 | E74: ='Mesh formulation'!X111 -> 100 | F74: =TRANSPOSE('Mesh formulation'!O36:T36) -> 0 | G74: =TRANSPOSE('Mesh formulation'!O97:T97) -> 0 | K74: 1 | L74: 1 | M74: ='Mesh formulation'!$AV$53 -> 150 | N74: ='Mesh formulation'!AV111 -> 105 | O74: =TRANSPOSE('Mesh formulation'!AM36:AR36) -> 0 | P74: =TRANSPOSE('Mesh formulation'!AM97:AR97) -> 0
B75: 2 | C75: 1 | D75: ='Mesh formulation'!$X$53 -> 100 | E75: ='Mesh formulation'!X112 -> 100 | F75: 0 | G75: 0 | K75: 2 | L75: 1 | M75: ='Mesh formulation'!$AV$53 -> 150 | N75: ='Mesh formulation'!AV112 -> 105 | O75: 0 | P75: 0
B76: 3 | C76: 1 | D76: ='Mesh formulation'!$X$53 -> 100 | E76: ='Mesh formulation'!X113 -> 100 | F76: 0 | G76: 0 | K76: 3 | L76: 1 | M76: ='Mesh formulation'!$AV$53 -> 150 | N76: ='Mesh formulation'!AV113 -> 105 | O76: 0 | P76: 0
B77: 4 | C77: 1 | D77: ='Mesh formulation'!$X$53 -> 100 | E77: ='Mesh formulation'!X114 -> 100 | F77: 0 | G77: 0 | K77: 4 | L77: 1 | M77: ='Mesh formulation'!$AV$53 -> 150 | N77: ='Mesh formulation'!AV114 -> 105 | O77: 0 | P77: 0
B78: 5 | C78: 1 | D78: ='Mesh formulation'!$X$53 -> 100 | E78: ='Mesh formulation'!X115 -> 4 | F78: 0 | G78: 0 | K78: 5 | L78: 1 | M78: ='Mesh formulation'!$AV$53 -> 150 | N78: ='Mesh formulation'!AV115 -> 5 | O78: 0 | P78: 0
B79: 6 | C79: 1 | D79: ='Mesh formulation'!$X$53 -> 100 | E79: ='Mesh formulation'!X116 -> 52 | F79: 0 | G79: 0 | K79: 6 | L79: 1 | M79: ='Mesh formulation'!$AV$53 -> 150 | N79: ='Mesh formulation'!AV116 -> 55 | O79: 0 | P79: 0
B81: Line flow | C81: Access Run Flow (MW) | D81: Physical Flow (MW) | K81: Line flow | L81: Access Run Flow (MW) | M81: Physical Flow (MW)
B82: 1 | C82: ='Mesh formulation'!U63 -> -150 | D82: ='Mesh formulation'!U124 -> -150 | K82: 1 | L82: ='Mesh formulation'!AS63 -> -150 | M82: ='Mesh formulation'!AS124 -> -150
B83: 2 | C83: ='Mesh formulation'!U64 -> -150 | D83: ='Mesh formulation'!U125 -> -150 | K83: 2 | L83: ='Mesh formulation'!AS64 -> -150 | M83: ='Mesh formulation'!AS125 -> -150
B84: 3 | C84: ='Mesh formulation'!U65 -> -150 | D84: ='Mesh formulation'!U126 -> -150 | K84: 3 | L84: ='Mesh formulation'!AS65 -> -200 | M84: ='Mesh formulation'!AS126 -> -175
B85: 4 | C85: ='Mesh formulation'!U66 -> 100 | D85: ='Mesh formulation'!U127 -> 100 | K85: 4 | L85: ='Mesh formulation'!AS66 -> 100 | M85: ='Mesh formulation'!AS127 -> 100
B86: 5 | C86: ='Mesh formulation'!U67 -> 50 | D86: ='Mesh formulation'!U128 -> 100 | K86: 5 | L86: ='Mesh formulation'!AS67 -> 50 | M86: ='Mesh formulation'!AS128 -> 125
B87: 6 | C87: ='Mesh formulation'!U68 -> -50 | D87: ='Mesh formulation'!U129 -> -9.099920817e-11 | K87: 6 | L87: ='Mesh formulation'!AS68 -> -50 | M87: ='Mesh formulation'!AS129 -> 25
B89: Unit dispatch | C89: Node | D89: Access Quantity (MW) | E89: Physical Quantity (MW) | F89: PQ - AQ | G89: Contracted Quantity (MW) | H89: Contract Payoff ($/MWh) | K89: Unit | L89: Node | M89: Access Quantity (MW) | N89: Physical Quantity (MW) | O89: PQ - AQ | P89: Contracted Quantity (MW) | Q89: Contract Payoff ($/MWh)
B90: 1 | C90: 1 | D90: =TRANSPOSE('Mesh formulation'!C36:H36) *IF($E$40:$E$45,-1,1) -> 200 | E90: =TRANSPOSE('Mesh formulation'!C97:H97)*IF($E$40:$E$45,-1,1) -> 200 | F90: =E90-D90 -> 0 | G90: =IF(C56="PPA",MIN(D56,ABS(E90)),D56) * IF(E40,-1,1) -> 15 | H90: =IF(C56 = "Cap", MIN(E56-VLOOKUP(C90,B$74:D$79,3,FALSE),0), E56-VLOOKUP(C90,B$74:D$79,3,FALSE)) -> -35 | K90: 1 | L90: 1 | M90: =TRANSPOSE('Mesh formulation'!AA36:AF36)*IF($N$40:$N$45,-1,1) -> 200 | N90: =TRANSPOSE('Mesh formulation'!AA97:AF97)*IF($N$40:$N$45,-1,1) -> 200 | O90: =N90-M90 -> 0 | P90: =IF(L56="PPA",MIN(M56,ABS(N90)),M56) * IF(N40,-1,1) -> 15 | Q90: =IF(L56 = "Cap", MIN(N56-VLOOKUP(L90,K$74:M$79,3,FALSE),0), N56-VLOOKUP(L90,K$74:M$79,3,FALSE)) -> -85
B91: 2 | C91: 2 | D91: 0 | E91: 0 | F91: =E91-D91 -> 0 | G91: 100 | H91: 0 | K91: 2 | L91: 2 | M91: 50 | N91: 25 | O91: =N91-M91 -> -25 | P91: =IF(L57="PPA",MIN(M57,ABS(N91)),M57) * IF(N41,-1,1) -> 100 | Q91: -45
B92: 3 | C92: 3 | D92: 200 | E92: 200 | F92: 0 | G92: 10 | H92: -40 | K92: 3 | L92: 3 | M92: 200 | N92: 200 | O92: 0 | P92: 10 | Q92: -90
B93: 4 | C93: 4 | D93: 100 | E93: 50 | F93: -50 | G93: 100 | H93: 0 | K93: 4 | L93: 4 | M93: 50 | N93: 0 | O93: -50 | P93: 100 | Q93: -40
B94: 5 | C94: 5 | D94: 200 | E94: 150 | F94: -50 | G94: 150 | H94: -60 | K94: 5 | L94: 5 | M94: 200 | N94: 125 | O94: -75 | P94: 125 | Q94: -110
B95: 6 | C95: 6 | D95: 150 | E95: 250 | F95: 100 | G95: 250 | H95: -60 | K95: 6 | L95: 6 | M95: 150 | N95: 300 | O95: 150 | P95: 250 | Q95: -110
B97: Unit financials | C97: Access revenue ($) | D97: CRM revenue ($) | E97: Pool revenue ($) | F97: Contract difference payment ($) | G97: Dispatch cost ($) | H97: Net profit ($) | K97: Unit financials | L97: Access revenue ($) | M97: CRM revenue ($) | N97: Pool revenue ($) | O97: Contract difference payment ($) | P97: Dispatch cost ($) | Q97: Net profit ($)
B98: 1 | C98: =D90 * VLOOKUP(C90,B$74:D$79,3,FALSE) -> 20000 | D98: =F90*VLOOKUP(C90,B$74:E$79,4,FALSE) -> 0 | E98: =C98+D98 -> 20000 | F98: =G90*H90 -> -525 | G98: =E90*D40 -> 12000 | H98: =SUM(E98:F98) - G98 -> 7475 | K98: 1 | L98: =M90 * VLOOKUP(L90,K$74:M$79,3,FALSE) -> 30000 | M98: =O90*VLOOKUP(L90,K$74:N$79,4,FALSE) -> 0 | N98: =L98+M98 -> 30000 | O98: =P90*Q90 -> -1275 | P98: 0 | Q98: =SUM(N98:O98) - P98 -> 28725
B99: 2 | C99: =D91 * VLOOKUP(C91,B$74:D$79,3,FALSE) -> 0 | D99: =F91*VLOOKUP(C91,B$74:E$79,4,FALSE) -> 0 | E99: =C99+D99 -> 0 | F99: =G91*H91 -> 0 | G99: 0 | H99: =SUM(E99:F99) - G99 -> 0 | K99: 2 | L99: =M91 * VLOOKUP(L91,K$74:M$79,3,FALSE) -> 7500 | M99: =O91*VLOOKUP(L91,K$74:N$79,4,FALSE) -> -2625 | N99: =L99+M99 -> 4875 | O99: =P91*Q91 -> -4500 | P99: =N91*M41 -> 2500 | Q99: =SUM(N99:O99) - P99 -> -2125
B100: 3 | C100: 20000 | D100: 0 | E100: 20000 | F100: -400 | G100: 10000 | H100: 9600 | K100: 3 | L100: 30000 | M100: 0 | N100: 30000 | O100: -900 | P100: =N92*M42 -> 10000 | Q100: 19100
B101: 4 | C101: 10000 | D101: -5000 | E101: 5000 | F101: 0 | G101: 5000 | H101: 0 | K101: 4 | L101: 7500 | M101: -5250 | N101: 2250 | O101: -4000 | P101: =N93*M43 -> 0 | Q101: -1750
B102: 5 | C102: 20000 | D102: -200 | E102: 19800 | F102: -9000 | G102: 600 | H102: 10200 | K102: 5 | L102: 30000 | M102: -375 | N102: 29625 | O102: -13750 | P102: =N94*M44 -> 625 | Q102: 15250
B103: 6 | C103: 15000 | D103: 5200 | E103: 20200 | F103: -15000 | G103: 2500 | H103: 2700 | K103: 6 | L103: 22500 | M103: 8250 | N103: 30750 | O103: -27500 | P103: =N95*M45 -> 3000 | Q103: 250
B104: Total | C104: =SUM(C98:C103) -> 85000 | D104: =SUM(D98:D103) -> 0 | E104: 85000 | F104: -24925 | G104: 30100 | H104: 29975 | K104: Total | L104: =SUM(L98:L103) -> 127500 | M104: =SUM(M98:M103) -> 0 | N104: 127500 | O104: -51925 | P104: 16125 | Q104: =SUM(Q98:Q103) -> 59450
B107: Scenario 1 | K107: Scenario 2
D109: =ROUND(TRANSPOSE(s1u2_dispatch),0)&"MW" -> 0MW | F109: =ROUND(TRANSPOSE(s1u4_dispatch),0)&"MW" -> 100MW | M109: =ROUND(TRANSPOSE(s2u2_dispatch),0)&"MW" -> 50MW | O109: =ROUND(TRANSPOSE(s2u4_dispatch),0)&"MW" -> 50MW
D110: 0MW | F110: 50MW | M110: 25MW | O110: 0MW
B111: ="$"&ROUND(TRANSPOSE(s1n1_price),0) &"/MWh" -> $100/MWh | G111: ="$"&ROUND(TRANSPOSE(s1n4_price),0) &"/MWh" -> $100/MWh | K111: ="$"&ROUND(TRANSPOSE(s2n1_price),0) &"/MWh" -> $150/MWh | P111: ="$"&ROUND(TRANSPOSE(s2n4_price),0) &"/MWh" -> $150/MWh
B112: $100/MWh | E112: ="$"&ROUND(TRANSPOSE(s1n2_price),0) &"/MWh" -> $100/MWh | G112: $100/MWh | K112: $105/MWh | N112: ="$"&ROUND(TRANSPOSE(s2n2_price),0) &"/MWh" -> $150/MWh | P112: $105/MWh
B113: =ROUND(s1n1_demand,0)&"MW" -> 50MW | E113: $100/MWh | G113: =ROUND(s1n4_demand,0)&"MW" -> 400MW | K113: =ROUND(s2n1_demand,0)&"MW" -> 50MW | N113: $105/MWh | P113: =ROUND(s2n4_demand,0)&"MW" -> 400MW
B114: =ROUND(TRANSPOSE(s1n1_use),0)&"MW" -> 0MW | E114: =ROUND(s1n2_demand,0)&"MW" -> 150MW | G114: =ROUND(TRANSPOSE(s1n4_use),0)&"MW" -> 0MW | K114: =ROUND(TRANSPOSE(s2n1_use),0)&"MW" -> 0MW | N114: =ROUND(s2n2_demand,0)&"MW" -> 150MW | P114: =ROUND(TRANSPOSE(s2n4_use),0)&"MW" -> 0MW
B115: 0MW | E115: =ROUND(TRANSPOSE(s1n2_use),0)&"MW" -> 0MW | G115: 0MW | K115: 0MW | N115: =ROUND(TRANSPOSE(s2n2_use),0)&"MW" -> 0MW | P115: 0MW
E116: 0MW | N116: 0MW
I118: ="$"&ROUND(TRANSPOSE(s1n6_price),0) &"/MWh" -> $100/MWh | R118: ="$"&ROUND(TRANSPOSE(s2n6_price),0) &"/MWh" -> $150/MWh
C119: =ROUND(TRANSPOSE(s1l1_flow),0)&"MW" -> -150MW | E119: =ROUND(TRANSPOSE(s1l3_flow),0)&"MW" -> -150MW | I119: $52/MWh | L119: =ROUND(TRANSPOSE(s2l1_flow),0)&"MW" -> -150MW | N119: =ROUND(TRANSPOSE(s2l3_flow),0)&"MW" -> -200MW | R119: $55/MWh
C120: -150MW | E120: -150MW | G120: =ROUND(TRANSPOSE(s1l5_flow),0)&"MW" -> 50MW | I120: =ROUND(s1n6_demand,0)&"MW" -> 150MW | L120: -150MW | N120: -175MW | P120: =ROUND(TRANSPOSE(s2l5_flow),0)&"MW" -> 50MW | R120: =ROUND(s2n6_demand,0)&"MW" -> 150MW
D121: =ROUND(TRANSPOSE(s1l2_flow),0)&"MW" -> -150MW | G121: 100MW | I121: =ROUND(TRANSPOSE(s1n6_use),0)&"MW" -> 0MW | M121: =ROUND(TRANSPOSE(s2l2_flow),0)&"MW" -> -150MW | P121: 125MW | R121: =ROUND(TRANSPOSE(s2n6_use),0)&"MW" -> 0MW
D122: -150MW | I122: 0MW | M122: -150MW | R122: 0MW
C125: ="$"&ROUND(TRANSPOSE(s1n3_price),0) &"/MWh" -> $100/MWh | F125: =ROUND(TRANSPOSE(s1l4_flow),0)&"MW" -> 100MW | L125: ="$"&ROUND(TRANSPOSE(s2n3_price),0) &"/MWh" -> $150/MWh | O125: =ROUND(TRANSPOSE(s2l4_flow),0)&"MW" -> 100MW
C126: $100/MWh | F126: 100MW | L126: $105/MWh | O126: 100MW
B127: =ROUND(TRANSPOSE(s1u1_dispatch),0)&"MW" -> 200MW | C127: =ROUND(s1n3_demand,0)&"MW" -> 50MW | I127: =ROUND(TRANSPOSE(s1u6_dispatch),0)&"MW" -> 150MW | K127: =ROUND(TRANSPOSE(s2u1_dispatch),0)&"MW" -> 200MW | L127: =ROUND(s2n3_demand,0)&"MW" -> 50MW | R127: =ROUND(TRANSPOSE(s2u6_dispatch),0)&"MW" -> 150MW
B128: 200MW | C128: =ROUND(TRANSPOSE(s1n3_use),0)&"MW" -> 0MW | G128: =ROUND(TRANSPOSE(s1l6_flow),0)&"MW" -> -50MW | I128: 250MW | K128: 200MW | L128: =ROUND(TRANSPOSE(s2n3_use),0)&"MW" -> 0MW | P128: =ROUND(TRANSPOSE(s2l6_flow),0)&"MW" -> -50MW | R128: 300MW
C129: 0MW | E129: ="$"&ROUND(TRANSPOSE(s1n5_price),0) &"/MWh" -> $100/MWh | G129: 0MW | L129: 0MW | N129: ="$"&ROUND(TRANSPOSE(s2n5_price),0) &"/MWh" -> $150/MWh | P129: 25MW
E130: $4/MWh | N130: $5/MWh
E131: =ROUND(s1n5_demand,0)&"MW" -> 50MW | N131: =ROUND(s2n5_demand,0)&"MW" -> 50MW
E132: =ROUND(TRANSPOSE(s1n5_use),0)&"MW" -> 0MW | N132: =ROUND(TRANSPOSE(s2n5_use),0)&"MW" -> 0MW
C133: =ROUND(TRANSPOSE(s1u3_dispatch),0)&"MW" -> 200MW | E133: 0MW | L133: =ROUND(TRANSPOSE(s2u3_dispatch),0)&"MW" -> 200MW | N133: 0MW
C134: 200MW | L134: 200MW
H135: =ROUND(TRANSPOSE(s1u5_dispatch),0)&"MW" -> 200MW | Q135: =ROUND(TRANSPOSE(s2u5_dispatch),0)&"MW" -> 200MW
H136: 150MW | Q136: 125MW
C137: Load
B138: Access Quantity | C138: Access USE | D138: RRP
B139: Physical Quantity | C139: Physical USE | D139: CRMP
B147: Sheet end

Sheet Model Formulation >

Sheet Radial formulation
B1: ENDGAME Economics | AEMC transmission access reform | Stylised model
B2: Model formulation - Radial
B3: DO NOT MODIFY
B4: Access Run
B6: Scenario 1 | M6: Scenario 2
C11: Dispatch | G11: USE | N11: Dispatch | R11: USE
B12: Variable specification | C12: Unit 1 | D12: Unit 2 | E12: Unit 3 | F12: Unit 4 | G12: USE Node 1 | M12: Variable specification | N12: Unit 1 | O12: Unit 2 | P12: Unit 3 | Q12: Unit 4 | R12: USE Node 1
B13: Cost coefficient | C13: =TRANSPOSE(Radial!$F$34:$F$37) *IF(_xlfn.ANCHORARRAY(C14),-1,1) -> 80 | D13: -1000 | E13: -700 | F13: -550 | G13: 17500 | M13: Cost coeffeiceint | N13: =TRANSPOSE(Radial!$O$34:$O$37) *IF(_xlfn.ANCHORARRAY(N14),-1,1) -> 50 | O13: 0 | P13: 10 | Q13: 1000 | R13: 17500
B14: Is load | C14: =TRANSPOSE(Radial!$E$28:$E$31) -> FALSE | D14: FALSE | E14: FALSE | F14: FALSE | M14: Is load | N14: =TRANSPOSE(Radial!$N$28:$N$31) -> FALSE | O14: FALSE | P14: FALSE | Q14: TRUE
B15: Lowerbound | C15: 0 | D15: 0 | E15: 0 | F15: 0 | G15: 0 | M15: Lowerbound | N15: 0 | O15: 0 | P15: 0 | Q15: 0 | R15: 0
B16: Solution | C16: 116.6666667 | D16: 100 | E16: 0 | F16: 33.33333333 | G16: 0 | M16: Solution | N16: 150 | O16: 100 | P16: 0 | Q16: 0 | R16: 0
B17: Upperbound | C17: =TRANSPOSE(Radial!$C$28:$C$31) -> 300 | D17: 100 | E17: 100 | F17: 100 | G17: =TRANSPOSE(Radial!$C$21:$C$21) -> 250 | M17: Upperbound | N17: =TRANSPOSE(Radial!$L$28:$L$31) -> 200 | O17: 100 | P17: 100 | Q17: 50 | R17: =TRANSPOSE(Radial!$L$21:$L$21) -> 250
B20: Sense | C20: Minimisation | M20: Sense | N20: Minimisation
B22: Objective value | C22: =SUMPRODUCT(C13:G13,C16:G16) -> -109000 | M22: Objective value | N22: =SUMPRODUCT(N13:R13,N16:R16) -> 7500
B25: Supply demand balance constraints | M25: Supply demand balance constraints
B26: Enforce dispatch to meet demand | M26: Enforce dispatch to meet demand
C28: LHS Coefficient | N28: LHS Coefficient
B29: Constraint index | C29: Unit 1 | D29: Unit 2 | E29: Unit 3 | F29: Unit 4 | G29: USE Node 1 | H29: LHS | I29: Sense | J29: RHS | K29: Dual | M29: Constraint index | N29: Unit 1 | O29: Unit 2 | P29: Unit 3 | Q29: Unit 4 | R29: USE Node 1 | S29: LHS | T29: Sense | U29: RHS | V29: Dual
B30: Node 1 | C30: =IF(C$14,-1,1) -> 1 | D30: =IF(D$14,-1,1) -> 1 | E30: 1 | F30: 1 | G30: 1 | H30: =SUMPRODUCT(C$16:G$16,C30:G30) -> 250 | I30: = | J30: =Radial!C21 -> 250 | K30: 80 | M30: Node 1 | N30: =IF(N$14,-1,1) -> 1 | O30: =IF(O$14,-1,1) -> 1 | P30: 1 | Q30: -1 | R30: 1 | S30: =SUMPRODUCT(N$16:R$16,N30:R30) -> 250 | T30: = | U30: =Radial!L21 -> 250 | V30: 50
B33: Nodal dispatch constraints | M33: Nodal dispatch constraints
B34: Constraint dispatch based on flow limit | M34: Constraint dispatch based on flow limit
C36: LHS Coefficient | N36: LHS Coefficient
B37: Constraint index | C37: Unit 1 | D37: Unit 2 | E37: Unit 3 | F37: Unit 4 | G37: USE Node 1 | H37: LHS | I37: Sense | J37: RHS | K37: Dual | M37: Constraint index | N37: Unit 1 | O37: Unit 2 | P37: Unit 3 | Q37: Unit 4 | R37: USE Node 1 | S37: LHS | T37: Sense | U37: RHS | V37: Dual
B38: Transfer limit | D38: =IF(D$14,-1,1) * Radial!E25 -> 1 | E38: =IF(E$14,-1,1) * Radial!F25 -> 0.8 | F38: =IF(F$14,-1,1) * Radial!G25 -> 0.6 | H38: =SUMPRODUCT(C$16:G$16,C38:G38) -> 120 | I38: <= | J38: =Radial!C25 -> 120 | K38: -1050 | M38: Transfer limit | O38: =IF(O$14,-1,1) *Radial!N25 -> 1 | P38: =IF(P$14,-1,1) *Radial!O25 -> 1 | Q38: =IF(Q$14,-1,1) *Radial!P25 -> -1 | S38: =SUMPRODUCT(N$16:R$16,N38:R38) -> 100 | T38: <= | U38: =Radial!L25 -> 100 | V38: -40
B41: CRM
B43: Scenario 1 | M43: Scenario 2
C48: Dispatch | G48: USE | N48: Dispatch | R48: USE
B49: Variable specification | C49: Unit 1 | D49: Unit 2 | E49: Unit 3 | F49: Unit 4 | G49: USE Node 1 | M49: Variable specification | N49: Unit 1 | O49: Unit 2 | P49: Unit 3 | Q49: Unit 4 | R49: USE Node 1
B50: Cost coefficient | C50: =TRANSPOSE(Radial!$G$34:$G$37)*IF(C51:F51,-1,1) -> 80 | D50: 25 | E50: 20 | F50: 12 | G50: =G13 -> 17500 | M50: Cost coeffeiceint | N50: =TRANSPOSE(Radial!$P$34:$P$37)*IF(N51:Q51,-1,1) -> 50 | O50: 0 | P50: 10 | Q50: -15 | R50: 17500
B51: Is load | C51: =C14 -> FALSE | D51: =D14 -> FALSE | E51: =E14 -> FALSE | F51: =F14 -> FALSE | M51: Is load | N51: =N14 -> FALSE | O51: =O14 -> FALSE | P51: =P14 -> FALSE | Q51: =Q14 -> TRUE
B52: Participation | C52: =TRANSPOSE(Radial!$F$28:$F$31) -> TRUE | D52: TRUE | E52: TRUE | F52: TRUE | M52: Participation | N52: =TRANSPOSE(Radial!$O$28:$O$31) -> TRUE | O52: TRUE | P52: TRUE | Q52: TRUE
B53: Lowerbound | C53: =IF(C52,C15,C16) -> 0 | D53: =IF(D52,D15,D16) -> 0 | E53: =IF(E52,E15,E16) -> 0 | F53: =IF(F52,F15,F16) -> 0 | G53: 0 | M53: Lowerbound | N53: =IF(N52,N15,N16) -> 0 | O53: =IF(O52,O15,O16) -> 0 | P53: =IF(P52,P15,P16) -> 0 | Q53: =IF(Q52,Q15,Q16) -> 0 | R53: 0
B54: Solution | C54: 75 | D54: 0 | E54: 75 | F54: 100 | G54: 0 | M54: Solution | N54: 150 | O54: 100 | P54: 50 | Q54: 50 | R54: 0
B55: Upperbound | C55: =IF(C52,C17,C16) -> 300 | D55: =IF(D52,D17,D16) -> 100 | E55: =IF(E52,E17,E16) -> 100 | F55: =IF(F52,F17,F16) -> 100 | G55: =G17 -> 250 | M55: Upperbound | N55: =IF(N52,N17,N16) -> 200 | O55: =IF(O52,O17,O16) -> 100 | P55: =IF(P52,P17,P16) -> 100 | Q55: =IF(Q52,Q17,Q16) -> 50 | R55: =R17 -> 250
B58: Sense | C58: Minimisation | M58: Sense | N58: Minimisation
B60: Objective value | C60: =SUMPRODUCT(C50:G50,C54:G54) -> 8700 | M60: Objective value | N60: =SUMPRODUCT(N50:R50,N54:R54) -> 7250
B63: Supply demand balance constraints | M63: Supply demand balance constraints
B64: Enforce dispatch to meet demand | M64: Enforce dispatch to meet demand
C66: LHS Coefficient | N66: LHS Coefficient
B67: Constraint index | C67: Unit 1 | D67: Unit 2 | E67: Unit 3 | F67: Unit 4 | G67: USE Node 1 | H67: LHS | I67: Sense | J67: RHS | K67: Dual | M67: Constraint index | N67: Unit 1 | O67: Unit 2 | P67: Unit 3 | Q67: Unit 4 | R67: USE Node 1 | S67: LHS | T67: Sense | U67: RHS | V67: Dual
B68: Node 1 | C68: =C30 -> 1 | D68: =D30 -> 1 | E68: 1 | F68: 1 | G68: =G30 -> 1 | H68: =SUMPRODUCT(C$54:G$54,C68:G68) -> 250 | I68: = | J68: =J30 -> 250 | K68: 80 | M68: Node 1 | N68: =N30 -> 1 | O68: =O30 -> 1 | P68: 1 | Q68: -1 | R68: 1 | S68: =SUMPRODUCT(N$54:R$54,N68:R68) -> 250 | T68: = | U68: =U30 -> 250 | V68: 50
B71: Nodal dispatch constraints | M71: Nodal dispatch constraints
B72: Constraint dispatch based on flow limit | M72: Constraint dispatch based on flow limit | P72: * negative coefficient on unit dispatch indicate load. Fetched from is load column
C74: LHS Coefficient | N74: LHS Coefficient
B75: Constraint index | C75: Unit 1 | D75: Unit 2 | E75: Unit 3 | F75: Unit 4 | G75: USE Node 1 | H75: LHS | I75: Sense | J75: RHS | K75: Dual | M75: Constraint index | N75: Unit 1 | O75: Unit 2 | P75: Unit 3 | Q75: Unit 4 | R75: USE Node 1 | S75: LHS | T75: Sense | U75: RHS | V75: Dual
B76: Node 2 dispatch | D76: =D38 -> 1 | E76: =E38 -> 0.8 | F76: 0.6 | H76: =SUMPRODUCT(C$54:G$54,C76:G76) -> 120 | I76: <= | J76: =J38 -> 120 | K76: -75 | M76: Node 2 dispatch | O76: =O38 -> 1 | P76: =P38 -> 1 | Q76: =Q38 -> -1 | S76: =SUMPRODUCT(N$54:R$54,N76:R76) -> 100 | T76: <= | U76: =U38 -> 100 | V76: -40
B77: CRMP | C77: =$K$68+ABS(C76)*$K$76 -> 80 | D77: =$K$68+ABS(D76)*$K$76 -> 5 | E77: 20 | F77: 35 | M77: CRMP | N77: =$V$68+ABS(N76)*$V$76 -> 50 | O77: =$V$68+ABS(O76)*$V$76 -> 10 | P77: 10 | Q77: 10
B79: Sheet end

Sheet Radial IC formulation
B1: ENDGAME Economics | AEMC transmission access reform | Stylised model
B2: Model formulation - Radial with IC
B3: DO NOT MODIFY
B4: Access Run
B6: Scenario 1 | Q6: Scenario 2
C11: Dispatch | I11: Export | J11: USE | R11: Dispatch | X11: Export | Y11: USE
B12: Variable specification | C12: Unit 1 | D12: Unit 2 | E12: Unit 3 | F12: Unit 4 | G12: Unit 5 | H12: Unit 6 | I12: Line 1 | J12: USE Node 1 | K12: USE Node 2 | Q12: Variable specification | R12: Unit 1 | S12: Unit 2 | T12: Unit 3 | U12: Unit 4 | V12: Unit 5 | W12: Unit 6 | X12: Line 3 | Y12: USE Node 1 | Z12: USE Node 2
B13: Cost coefficient | C13: =TRANSPOSE('Radial with IC'!$F43:$F48) * IF(_xlfn.ANCHORARRAY(C14),-1,1) -> 80 | D13: -550 | E13: -1000 | F13: 150 | G13: -1000 | H13: -400 | J13: 17500 | K13: 17500 | Q13: Cost coeffeiceint | R13: =TRANSPOSE('Radial with IC'!$O$43:$O$48) * IF(_xlfn.ANCHORARRAY(R14),-1,1) -> 80 | S13: 30 | T13: 0 | U13: 150 | V13: -1000 | W13: 0 | Y13: 17500 | Z13: 17500
B14: Is load | C14: =TRANSPOSE('Radial with IC'!$E$35:$E$40) -> FALSE | D14: FALSE | E14: FALSE | F14: FALSE | G14: FALSE | H14: FALSE | Q14: Is load | R14: =TRANSPOSE('Radial with IC'!$N$35:$N$40) -> FALSE | S14: FALSE | T14: FALSE | U14: FALSE | V14: FALSE | W14: FALSE
B15: Lowerbound | C15: 0 | D15: 0 | E15: 0 | F15: 0 | G15: 0 | H15: 0 | I15: =-'Radial with IC'!$C$27 -> -90 | J15: 0 | K15: 0 | Q15: Lowerbound | R15: 0 | S15: 0 | T15: 0 | U15: 0 | V15: 0 | W15: 0 | X15: =-'Radial with IC'!$L$27 -> -300 | Y15: 0 | Z15: 0
B16: Solution | C16: 400 | D16: 80 | E16: 100 | F16: 120 | G16: 100 | H16: 0 | I16: -80 | J16: 0 | K16: 0 | Q16: Solution | R16: 63 | S16: 50 | T16: 100 | U16: 0 | V16: 100 | W16: 100 | X16: -13 | Y16: 0 | Z16: 0
B17: Upperbound | C17: =TRANSPOSE('Radial with IC'!$C$35:$C$40) -> 400 | D17: 100 | E17: 100 | F17: 400 | G17: 100 | H17: 100 | I17: ='Radial with IC'!$C$27 -> 90 | J17: =TRANSPOSE('Radial with IC'!$C$23:$C$24) -> 500 | K17: 300 | Q17: Upperbound | R17: =TRANSPOSE('Radial with IC'!$L$35:$L$40) -> 400 | S17: 100 | T17: 100 | U17: 400 | V17: 100 | W17: 100 | X17: ='Radial with IC'!$L$27 -> 300 | Y17: =TRANSPOSE('Radial with IC'!$L$23:$L$24) -> 200 | Z17: 213
B20: Sense | C20: Minimisation | Q20: Sense | R20: Minimisation
B22: Objective value | C22: =SUMPRODUCT(C13:K13,C16:K16) -> -194000 | Q22: Objective value | R22: =SUMPRODUCT(R13:Z13,R16:Z16) -> -93460
B25: Supply demand balance constraints | Q25: Supply demand balance constraints
B26: Enforce dispatch to meet demand | Q26: Enforce dispatch to meet demand
C28: LHS Coefficient | R28: LHS Coefficient
B29: Constraint index | C29: Unit 1 | D29: Unit 2 | E29: Unit 3 | F29: Unit 4 | G29: Unit 5 | H29: Unit 6 | I29: Line 1 | J29: USE Node 1 | K29: USE Node 2 | L29: LHS | M29: Sense | N29: RHS | O29: Dual | Q29: Constraint index | R29: Unit 1 | S29: Unit 2 | T29: Unit 3 | U29: Unit 4 | V29: Unit 5 | W29: Unit 6 | X29: Line 3 | Y29: USE Node 1 | Z29: USE Node 2 | AA29: LHS | AB29: Sense | AC29: RHS | AD29: Dual
B30: Node 1 | C30: =IF(C$14,-1,1) -> 1 | D30: =IF(D$14,-1,1) -> 1 | E30: 1 | I30: 1 | J30: 1 | L30: =SUMPRODUCT(C$16:K$16,C30:K30) -> 500 | M30: = | N30: ='Radial with IC'!C23 -> 500 | O30: 150 | Q30: Node 1 | R30: =IF(R$14,-1,1) -> 1 | S30: =IF(S$14,-1,1) -> 1 | T30: 1 | X30: 1 | Y30: 1 | AA30: =SUMPRODUCT(R$16:Z$16,R30:Z30) -> 200 | AB30: = | AC30: ='Radial with IC'!L23 -> 200 | AD30: 80
B31: Node 2 | F31: =IF(F$14,-1,1) -> 1 | G31: =IF(G$14,-1,1) -> 1 | H31: 1 | I31: -1 | K31: 1 | L31: =SUMPRODUCT(C$16:K$16,C31:K31) -> 300 | M31: = | N31: ='Radial with IC'!C24 -> 300 | O31: 150 | Q31: Node 2 | U31: =IF(U$14,-1,1) -> 1 | V31: =IF(V$14,-1,1) -> 1 | W31: 1 | X31: -1 | Z31: 1 | AA31: =SUMPRODUCT(R$16:Z$16,R31:Z31) -> 213 | AB31: = | AC31: ='Radial with IC'!L24 -> 213 | AD31: 80
B34: Nodal dispatch constraints | Q34: Nodal dispatch constraints
B35: Constraint dispatch based on flow limit | Q35: Constraint dispatch based on flow limit
C37: LHS Coefficient | R37: LHS Coefficient
B38: Constraint index | C38: Unit 1 | D38: Unit 2 | E38: Unit 3 | F38: Unit 4 | G38: Unit 5 | H38: Unit 6 | I38: Line 3 | J38: USE Node 1 | K38: USE Node 2 | L38: LHS | M38: Sense | N38: RHS | O38: Dual | Q38: Constraint index | R38: Unit 1 | S38: Unit 2 | T38: Unit 3 | U38: Unit 4 | V38: Unit 5 | W38: Unit 6 | X38: Line 3 | Y38: USE Node 1 | Z38: USE Node 2 | AA38: LHS | AB38: Sense | AC38: RHS | AD38: Dual
B39: Transfer limit 1 | D39: =IF(D$14,-1,1) * 'Radial with IC'!E31 -> 1 | E39: =IF(E$14,-1,1) * 'Radial with IC'!F31 -> 0.5 | L39: =SUMPRODUCT(C$16:K$16,C39:K39) -> 130 | M39: <= | N39: ='Radial with IC'!C31 -> 130 | O39: -700 | Q39: Transfer limit 1 | S39: =IF(S$14,-1,1) * 'Radial with IC'!N31 -> 1 | T39: =IF(T$14,-1,1) * 'Radial with IC'!O31 -> 0.5 | AA39: =SUMPRODUCT(R$16:Z$16,R39:Z39) -> 100 | AB39: <= | AC39: ='Radial with IC'!L31 -> 100 | AD39: -50
B40: Transfer limit 2 | G40: =IF(G$14,-1,1) * 'Radial with IC'!H32 -> 1 | H40: =IF(H$14,-1,1) * 'Radial with IC'!I32 -> 0.5 | L40: =SUMPRODUCT(C$16:K$16,C40:K40) -> 100 | M40: <= | N40: ='Radial with IC'!C32 -> 100 | O40: -1100 | Q40: Transfer limit 2 | V40: =IF(V$14,-1,1) * 'Radial with IC'!Q32 -> 1 | W40: =IF(W$14,-1,1) * 'Radial with IC'!R32 -> 0.2 | AA40: =SUMPRODUCT(R$16:Z$16,R40:Z40) -> 120 | AB40: <= | AC40: ='Radial with IC'!L32 -> 150 | AD40: 0
B43: CRM
B45: Scenario 1 | Q45: Scenario 2
C50: Dispatch | I50: Export | J50: USE | R50: Dispatch | X50: Export | Y50: USE
B51: Variable specification | C51: Unit 1 | D51: Unit 2 | E51: Unit 3 | F51: Unit 4 | G51: Unit 5 | H51: Unit 6 | I51: Line 3 | J51: USE Node 1 | K51: USE Node 2 | Q51: Variable specification | R51: Unit 1 | S51: Unit 2 | T51: Unit 3 | U51: Unit 4 | V51: Unit 5 | W51: Unit 6 | X51: Line 3 | Y51: USE Node 1 | Z51: USE Node 2
B52: Cost coefficient | C52: =TRANSPOSE('Radial with IC'!$G$43:$G$48) * IF(C53:H53,-1,1) -> 100 | D52: 45 | E52: 50 | F52: 200 | G52: 10 | H52: 0 | J52: =J13 -> 17500 | K52: =K13 -> 17500 | Q52: Cost coeffeiceint | R52: =TRANSPOSE('Radial with IC'!$P$43:$P$48) * IF(R53:W53,-1,1) -> 80 | S52: 30 | T52: 0 | U52: 150 | V52: 10 | W52: 0 | Y52: =Y13 -> 17500 | Z52: =Z13 -> 17500
B53: Is load | C53: =C14 -> FALSE | D53: FALSE | E53: FALSE | F53: FALSE | G53: FALSE | H53: FALSE | Q53: Is load | R53: =R14 -> FALSE | S53: FALSE | T53: FALSE | U53: FALSE | V53: FALSE | W53: FALSE
B54: Participation | C54: =TRANSPOSE('Radial with IC'!$F$35:$F$40) -> TRUE | D54: TRUE | E54: TRUE | F54: TRUE | G54: TRUE | H54: TRUE | Q54: Participation | R54: =TRANSPOSE('Radial with IC'!$O$35:$O$40) -> FALSE | S54: FALSE | T54: FALSE | U54: FALSE | V54: FALSE | W54: TRUE
B55: Lowerbound | C55: =IF(C54,C15,C16) -> 0 | D55: 0 | E55: 0 | F55: 0 | G55: 0 | H55: 0 | I55: =I15 -> -90 | J55: 0 | K55: 0 | Q55: Lowerbound | R55: =IF(R54,R15,R16) -> 63 | S55: 50 | T55: 100 | U55: 0 | V55: 100 | W55: 0 | X55: =X15 -> -300 | Y55: 0 | Z55: 0
B56: Solution | C56: 400 | D56: 80 | E56: 100 | F56: 70 | G56: 50 | H56: 100 | I56: -80 | J56: 0 | K56: 0 | Q56: Solution | R56: 63 | S56: 50 | T56: 100 | U56: 0 | V56: 100 | W56: 100 | X56: -13 | Y56: 0 | Z56: 0
B57: Upperbound | C57: =IF(C54,C17,C16) -> 400 | D57: 100 | E57: 100 | F57: 400 | G57: 100 | H57: 100 | I57: =I17 -> 90 | J57: =J17 -> 500 | K57: =K17 -> 300 | Q57: Upperbound | R57: =IF(R54,R17,R16) -> 63 | S57: 50 | T57: 100 | U57: 0 | V57: 100 | W57: 100 | X57: =X17 -> 300 | Y57: =Y17 -> 200 | Z57: =Z17 -> 213
B60: Sense | C60: Minimisation | Q60: Sense | R60: Minimisation
B62: Objective value | C62: =SUMPRODUCT(C52:K52,C56:K56) -> 63100 | Q62: Objective value | R62: =SUMPRODUCT(R52:Z52,R56:Z56) -> 7540
R63: 0
B65: Supply demand balance constraints | Q65: Supply demand balance constraints
B66: Enforce dispatch to meet demand | Q66: Enforce dispatch to meet demand
C68: LHS Coefficient | R68: LHS Coefficient
B69: Constraint index | C69: Unit 1 | D69: Unit 2 | E69: Unit 3 | F69: Unit 4 | G69: Unit 5 | H69: Unit 6 | I69: Line 3 | J69: USE Node 1 | K69: USE Node 2 | L69: LHS | M69: Sense | N69: RHS | O69: Dual | Q69: Constraint index | R69: Unit 1 | S69: Unit 2 | T69: Unit 3 | U69: Unit 4 | V69: Unit 5 | W69: Unit 6 | X69: Line 3 | Y69: USE Node 1 | Z69: USE Node 2 | AA69: LHS | AB69: Sense | AC69: RHS | AD69: Dual
B70: Node 1 | C70: =C30 -> 1 | D70: =D30 -> 1 | E70: 1 | I70: =I30 -> 1 | J70: =J30 -> 1 | L70: =SUMPRODUCT(C$56:K$56,C70:K70) -> 500 | M70: = | N70: =N30 -> 500 | O70: 200 | Q70: Node 1 | R70: =R30 -> 1 | S70: =S30 -> 1 | T70: 1 | X70: 1 | Y70: 1 | AA70: =SUMPRODUCT(R$56:Z$56,R70:Z70) -> 200 | AB70: = | AC70: =AC30 -> 200 | AD70: 0
B71: Node 2 | F71: =F31 -> 1 | G71: =G31 -> 1 | H71: 1 | I71: =I31 -> -1 | K71: =K31 -> 1 | L71: =SUMPRODUCT(C$56:K$56,C71:K71) -> 300 | M71: = | N71: =N31 -> 300 | O71: 200 | Q71: Node 2 | U71: =U31 -> 1 | V71: =V31 -> 1 | W71: 1 | X71: -1 | Z71: 1 | AA71: =SUMPRODUCT(R$56:Z$56,R71:Z71) -> 213 | AB71: = | AC71: =AC31 -> 213 | AD71: 0
B74: Nodal dispatch constraints | Q74: Nodal dispatch constraints
B75: Constraint dispatch based on flow limit | Q75: Constraint dispatch based on flow limit | T75: * negative coefficient on unit dispatch indicate load. Fetched from is load column
C77: LHS Coefficient | R77: LHS Coefficient
B78: Constraint index | C78: Unit 1 | D78: Unit 2 | E78: Unit 3 | F78: Unit 4 | G78: Unit 5 | H78: Unit 6 | I78: Line 3 | J78: USE Node 1 | K78: USE Node 2 | L78: LHS | M78: Sense | N78: RHS | O78: Dual | Q78: Constraint index | R78: Unit 1 | S78: Unit 2 | T78: Unit 3 | U78: Unit 4 | V78: Unit 5 | W78: Unit 6 | X78: Line 3 | Y78: USE Node 1 | Z78: USE Node 2 | AA78: LHS | AB78: Sense | AC78: RHS | AD78: Dual
B79: Transfer limit 1 | D79: =D39 -> 1 | E79: =E39 -> 0.5 | L79: =SUMPRODUCT(C$56:K$56,C79:K79) -> 130 | M79: <= | N79: =N39 -> 130 | O79: -155 | Q79: Transfer limit 1 | S79: =S39 -> 1 | T79: =T39 -> 0.5 | AA79: =SUMPRODUCT(R$56:Z$56,R79:Z79) -> 100 | AB79: <= | AC79: =AC39 -> 100 | AD79: 0
B80: Transfer limit 2 | G80: =G40 -> 1 | H80: =H40 -> 0.5 | L80: =SUMPRODUCT(C$56:K$56,C80:K80) -> 100 | M80: <= | N80: =N40 -> 100 | O80: -190 | Q80: Transfer limit 2 | V80: =V40 -> 1 | W80: =W40 -> 0.2 | AA80: =SUMPRODUCT(R$56:Z$56,R80:Z80) -> 120 | AB80: <= | AC80: =AC40 -> 150 | AD80: 0
B81: CRMP | C81: =$O$70+ABS(C79)*$O$79 -> 200 | D81: =$O$70+ABS(D79)*$O$79 -> 45 | E81: 122.5 | F81: =$O$71+ABS(F80)*$O$80 -> 200 | G81: =$O$71+ABS(G80)*$O$80 -> 10 | H81: 105 | Q81: CRMP | R81: =$AD$70+ABS(R79)*$AD$79 -> 0 | S81: =$AD$70+ABS(S79)*$AD$79 -> 0 | T81: 0 | U81: =$AD$71+ABS(U80)*$AD$80 -> 0 | V81: =$AD$71+ABS(V80)*$AD$80 -> 0 | W81: 0
B83: Sheet end
C662: 0

Sheet Mesh formulation
B1: ENDGAME Economics | AEMC transmission access reform | Stylised model
B2: Model formulation - Mesh
B3: DO NOT MODIFY
B4: Powerflow Data
B6: Susceptance Matrix | C6: 1 | D6: 2 | E6: 3 | F6: 4 | G6: 5 | H6: 6 | J6: Y Bus Matrix | K6: 1 | L6: 2 | M6: 3 | N6: 4 | O6: 5 | P6: 6
B7: 1 | C7: 0 | D7: -10 | E7: 0 | F7: 0 | G7: 0 | H7: 0 | J7: 1 | K7: =IF($J7=K$6,-SUM(C$7:C$12),C7) -> 10 | L7: =IF($J7=L$6,-SUM(D$7:D$12),D7) -> -10 | M7: 0 | N7: 0 | O7: 0 | P7: 0
B8: 2 | C8: -10 | D8: 0 | E8: -10 | F8: -10 | G8: 0 | H8: 0 | J8: 2 | K8: =IF($J8=K$6,-SUM(C$7:C$12),C8) -> -10 | L8: 30 | M8: -10 | N8: -10 | O8: 0 | P8: 0
B9: 3 | C9: 0 | D9: -10 | E9: 0 | F9: 0 | G9: 0 | H9: 0 | J9: 3 | K9: 0 | L9: -10 | M9: 10 | N9: 0 | O9: 0 | P9: 0
B10: 4 | C10: 0 | D10: -10 | E10: 0 | F10: 0 | G10: -10 | H10: -10 | J10: 4 | K10: 0 | L10: -10 | M10: 0 | N10: 30 | O10: -10 | P10: -10
B11: 5 | C11: 0 | D11: 0 | E11: 0 | F11: -10 | G11: 0 | H11: -10 | J11: 5 | K11: 0 | L11: 0 | M11: 0 | N11: -10 | O11: 20 | P11: -10
B12: 6 | C12: 0 | D12: 0 | E12: 0 | F12: -10 | G12: -10 | H12: 0 | J12: 6 | K12: 0 | L12: 0 | M12: 0 | N12: -10 | O12: -10 | P12: 20
B15: Flow specification | C15: From | D15: To | E15: Susceptance | F15: Theta 1 | G15: Theta 2 | H15: Theta 3 | I15: Theta 4 | J15: Theta 5 | K15: Theta 6
B16: Line 1 | C16: 2 | D16: 1 | E16: =VLOOKUP(C16,B$7:H$12,MATCH(D16,B$6:H$6,0),FALSE) -> -10 | F16: -1 | G16: 1 | M16: Voltage Base Scalar | N16: 500
B17: Line 2 | C17: 2 | D17: 3 | E17: -10 | G17: 1 | H17: -1
B18: Line 3 | C18: 4 | D18: 2 | E18: -10 | G18: -1 | I18: 1
B19: Line 4 | C19: 5 | D19: 4 | E19: -10 | I19: -1 | J19: 1
B20: Line 5 | C20: 6 | D20: 4 | E20: -10 | I20: -1 | K20: 1
B21: Line 6 | C21: 6 | D21: 5 | E21: -10 | J21: -1 | K21: 1
B24: Access Run
B26: Scenario 1 | Z26: Scenario 2
C31: Dispatch | I31: Phase Angles | O31: USE | AA31: Dispatch | AG31: Phase Angles | AM31: USE
B32: Variable specification | C32: Unit 1 | D32: Unit 2 | E32: Unit 3 | F32: Unit 4 | G32: Unit 5 | H32: Unit 6 | I32: Theta 1 | J32: Theta 2 | K32: Theta 3 | L32: Theta 4 | M32: Theta 5 | N32: Theta 6 | O32: USE Node 1 | P32: USE Node 2 | Q32: USE Node 3 | R32: USE Node 4 | S32: USE Node 5 | T32: USE Node 6 | Z32: Variable specification | AA32: Unit 1 | AB32: Unit 2 | AC32: Unit 3 | AD32: Unit 4 | AE32: Unit 5 | AF32: Unit 6 | AG32: Theta 1 | AH32: Theta 2 | AI32: Theta 3 | AJ32: Theta 4 | AK32: Theta 5 | AL32: Theta 6 | AM32: USE Node 1 | AN32: USE Node 2 | AO32: USE Node 3 | AP32: USE Node 4 | AQ32: USE Node 5 | AR32: USE Node 6
B33: Cost coefficient | C33: =TRANSPOSE(Mesh!$F$48:$F$53)*IF(_xlfn.ANCHORARRAY(C34),-1,1) -> 60 | D33: 105 | E33: 50 | F33: 100 | G33: -1000 | H33: -400 | O33: 17500 | P33: 17500 | Q33: 17500 | R33: 17500 | S33: 17500 | T33: 17500 | Z33: Cost coefficient | AA33: =TRANSPOSE(Mesh!$O$48:$O$53)*IF(_xlfn.ANCHORARRAY(AA34),-1,1) -> 60 | AB33: 100 | AC33: 50 | AD33: 150 | AE33: -1000 | AF33: -400 | AM33: 17500 | AN33: 17500 | AO33: 17500 | AP33: 17500 | AQ33: 17500 | AR33: 17500
B34: Is load | C34: =TRANSPOSE(Mesh!$E$40:$E$45) -> FALSE | D34: FALSE | E34: FALSE | F34: FALSE | G34: FALSE | H34: FALSE | Z34: Is load | AA34: =TRANSPOSE(Mesh!$N$40:$N$45) -> FALSE | AB34: FALSE | AC34: FALSE | AD34: FALSE | AE34: FALSE | AF34: FALSE
B35: Lowerbound | C35: 0 | D35: 0 | E35: 0 | F35: 0 | G35: 0 | H35: 0 | I35: -1000 | J35: -1000 | K35: -1000 | L35: -1000 | M35: -1000 | N35: -1000 | O35: 0 | P35: 0 | Q35: 0 | R35: 0 | S35: 0 | T35: 0 | Z35: Lowerbound | AA35: 0 | AB35: 0 | AC35: 0 | AD35: 0 | AE35: 0 | AF35: 0 | AG35: -1000 | AH35: -1000 | AI35: -1000 | AJ35: -1000 | AK35: -1000 | AL35: -1000 | AM35: 0 | AN35: 0 | AO35: 0 | AP35: 0 | AQ35: 0 | AR35: 0
B36: Solution | C36: 200 | D36: 0 | E36: 200 | F36: 100 | G36: 200 | H36: 150 | I36: -0.03 | J36: 0 | K36: -0.03 | L36: 0.03 | M36: 0.01 | N36: 0.02 | O36: 0 | P36: 0 | Q36: 0 | R36: 0 | S36: 0 | T36: 0 | Z36: Solution | AA36: 200 | AB36: 50 | AC36: 200 | AD36: 50 | AE36: 200 | AF36: 150 | AG36: -0.03 | AH36: 0 | AI36: -0.03 | AJ36: 0.04 | AK36: 0.02 | AL36: 0.03 | AM36: 0 | AN36: 0 | AO36: 0 | AP36: 0 | AQ36: 0 | AR36: 0
B37: Upperbound | C37: =TRANSPOSE(Mesh!$C$40:$C$45) -> 200 | D37: 300 | E37: 200 | F37: 400 | G37: 200 | H37: 250 | I37: 1000 | J37: 1000 | K37: 1000 | L37: 1000 | M37: 1000 | N37: 1000 | O37: =TRANSPOSE(Mesh!$C$23:$C$28) -> 50 | P37: 150 | Q37: 50 | R37: 400 | S37: 50 | T37: 150 | Z37: Upperbound | AA37: =TRANSPOSE(Mesh!$L$40:$L$45) -> 200 | AB37: 300 | AC37: 200 | AD37: 300 | AE37: 200 | AF37: 300 | AG37: 1000 | AH37: 1000 | AI37: 1000 | AJ37: 1000 | AK37: 1000 | AL37: 1000 | AM37: =TRANSPOSE(Mesh!$L$23:$L$28) -> 50 | AN37: 150 | AO37: 50 | AP37: 400 | AQ37: 50 | AR37: 150
B40: Sense | C40: Minimisation | Z40: Sense | AA40: Minimisation
B42: Objective value | C42: =SUMPRODUCT(C33:T33,C36:T36) -> -228000 | Z42: Objective value | AA42: =SUMPRODUCT(AA33:AR33,AA36:AR36) -> -225500
B45: Supply demand balance constraints | Z45: Supply demand balance constraints
B46: Enforce dispatch to meet demand | Z46: Enforce dispatch to meet demand
C48: LHS Coefficient | AA48: LHS Coefficient
B49: Constraint index | C49: Unit 1 | D49: Unit 2 | E49: Unit 3 | F49: Unit 4 | G49: Unit 5 | H49: Unit 6 | I49: Theta 1 | J49: Theta 2 | K49: Theta 3 | L49: Theta 4 | M49: Theta 5 | N49: Theta 6 | O49: USE Node 1 | P49: USE Node 2 | Q49: USE Node 3 | R49: USE Node 4 | S49: USE Node 5 | T49: USE Node 6 | U49: LHS | V49: Sense | W49: RHS | X49: Dual | Z49: Constraint index | AA49: Unit 1 | AB49: Unit 2 | AC49: Unit 3 | AD49: Unit 4 | AE49: Unit 5 | AF49: Unit 6 | AG49: Theta 1 | AH49: Theta 2 | AI49: Theta 3 | AJ49: Theta 4 | AK49: Theta 5 | AL49: Theta 6 | AM49: USE Node 1 | AN49: USE Node 2 | AO49: USE Node 3 | AP49: USE Node 4 | AQ49: USE Node 5 | AR49: USE Node 6 | AS49: LHS | AT49: Sense | AU49: RHS | AV49: Dual
B50: Node 1 | C50: =IF(C$34,-1,1) -> 1 | I50: =K7*$N$16 -> 5000 | J50: =L7*$N$16 -> -5000 | K50: 0 | L50: 0 | M50: 0 | N50: 0 | O50: 1 | U50: =SUMPRODUCT(C$36:T$36,C50:T50) -> 50 | V50: = | W50: =Mesh!C23 -> 50 | X50: 100 | Z50: Node 1 | AA50: =IF(AA$34,-1,1) -> 1 | AG50: =K7*$N$16 -> 5000 | AH50: =L7*$N$16 -> -5000 | AI50: 0 | AJ50: 0 | AK50: 0 | AL50: 0 | AM50: 1 | AS50: =SUMPRODUCT(AA$36:AR$36,AA50:AR50) -> 50 | AT50: = | AU50: =Mesh!L23 -> 50 | AV50: 100
B51: Node 2 | D51: =IF(D$34,-1,1) -> 1 | I51: =K8*$N$16 -> -5000 | J51: 15000 | K51: -5000 | L51: -5000 | M51: 0 | N51: 0 | P51: 1 | U51: =SUMPRODUCT(C$36:T$36,C51:T51) -> 150 | V51: = | W51: =Mesh!C24 -> 150 | X51: 100 | Z51: Node 2 | AB51: =IF(AB$34,-1,1) -> 1 | AG51: =K8*$N$16 -> -5000 | AH51: 15000 | AI51: -5000 | AJ51: -5000 | AK51: 0 | AL51: 0 | AN51: 1 | AS51: =SUMPRODUCT(AA$36:AR$36,AA51:AR51) -> 150 | AT51: = | AU51: =Mesh!L24 -> 150 | AV51: 100
B52: Node 3 | E52: =IF(E$34,-1,1) -> 1 | I52: 0 | J52: -5000 | K52: 5000 | L52: 0 | M52: 0 | N52: 0 | Q52: 1 | U52: 50 | V52: = | W52: =Mesh!C25 -> 50 | X52: 100 | Z52: Node 3 | AC52: =IF(AC$34,-1,1) -> 1 | AG52: 0 | AH52: -5000 | AI52: 5000 | AJ52: 0 | AK52: 0 | AL52: 0 | AO52: 1 | AS52: 50 | AT52: = | AU52: =Mesh!L25 -> 50 | AV52: 100
B53: Node 4 | F53: =IF(F$34,-1,1) -> 1 | I53: 0 | J53: -5000 | K53: 0 | L53: 15000 | M53: -5000 | N53: -5000 | R53: 1 | U53: 400 | V53: = | W53: =Mesh!C26 -> 400 | X53: 100 | Z53: Node 4 | AD53: =IF(AD$34,-1,1) -> 1 | AG53: 0 | AH53: -5000 | AI53: 0 | AJ53: 15000 | AK53: -5000 | AL53: -5000 | AP53: 1 | AS53: 400 | AT53: = | AU53: =Mesh!L26 -> 400 | AV53: 150
B54: Node 5 | G54: =IF(G$34,-1,1) -> 1 | I54: 0 | J54: 0 | K54: 0 | L54: -5000 | M54: 10000 | N54: -5000 | S54: 1 | U54: 50 | V54: = | W54: =Mesh!C27 -> 50 | X54: -900 | Z54: Node 5 | AE54: =IF(AE$34,-1,1) -> 1 | AG54: 0 | AH54: 0 | AI54: 0 | AJ54: -5000 | AK54: 10000 | AL54: -5000 | AQ54: 1 | AS54: 50 | AT54: = | AU54: =Mesh!L27 -> 50 | AV54: -950
B55: Node 6 | H55: =IF(H$34,-1,1) -> 1 | I55: 0 | J55: 0 | K55: 0 | L55: -5000 | M55: -5000 | N55: 10000 | T55: 1 | U55: 150 | V55: = | W55: =Mesh!C28 -> 150 | X55: -400 | Z55: Node 6 | AF55: =IF(AF$34,-1,1) -> 1 | AG55: 0 | AH55: 0 | AI55: 0 | AJ55: -5000 | AK55: -5000 | AL55: 10000 | AR55: 1 | AS55: 150 | AT55: = | AU55: =Mesh!L28 -> 150 | AV55: -400
B58: Line export limit constraints | Z58: Line export limit constraints
B59: Enforce line rating limit | Z59: Enforce line rating limit
C61: LHS Coefficient | AA61: LHS Coefficient
B62: Constraint index | C62: Unit 1 | D62: Unit 2 | E62: Unit 3 | F62: Unit 4 | G62: Unit 5 | H62: Unit 6 | I62: Theta 1 | J62: Theta 2 | K62: Theta 3 | L62: Theta 4 | M62: Theta 5 | N62: Theta 6 | O62: USE Node 1 | P62: USE Node 2 | Q62: USE Node 3 | R62: USE Node 4 | S62: USE Node 5 | T62: USE Node 6 | U62: LHS | V62: Sense | W62: RHS | Z62: Constraint index | AA62: Unit 1 | AB62: Unit 2 | AC62: Unit 3 | AD62: Unit 4 | AE62: Unit 5 | AF62: Unit 6 | AG62: Theta 1 | AH62: Theta 2 | AI62: Theta 3 | AJ62: Theta 4 | AK62: Theta 5 | AL62: Theta 6 | AM62: USE Node 1 | AN62: USE Node 2 | AO62: USE Node 3 | AP62: USE Node 4 | AQ62: USE Node 5 | AR62: USE Node 6 | AS62: LHS | AT62: Sense | AU62: RHS
B63: Line 1 | I63: =$E16*F16*$N$16 -> 5000 | J63: =$E16*G16*$N$16 -> -5000 | K63: 0 | L63: 0 | M63: 0 | N63: 0 | U63: =SUMPRODUCT(C$36:T$36,C63:T63) -> -150 | V63: <= | W63: =Mesh!C32 -> 200 | Z63: Line 1 | AG63: =$E16*F16*$N$16 -> 5000 | AH63: =$E16*G16*$N$16 -> -5000 | AI63: 0 | AJ63: 0 | AK63: 0 | AL63: 0 | AS63: =SUMPRODUCT(AA$36:AR$36,AA63:AR63) -> -150 | AT63: <= | AU63: =Mesh!L32 -> 200
B64: Line 2 | I64: =$E17*F17*$N$16 -> 0 | J64: -5000 | K64: 5000 | L64: 0 | M64: 0 | N64: 0 | U64: =SUMPRODUCT(C$36:T$36,C64:T64) -> -150 | V64: <= | W64: =Mesh!C33 -> 200 | Z64: Line 2 | AG64: =$E17*F17*$N$16 -> 0 | AH64: -5000 | AI64: 5000 | AJ64: 0 | AK64: 0 | AL64: 0 | AS64: =SUMPRODUCT(AA$36:AR$36,AA64:AR64) -> -150 | AT64: <= | AU64: =Mesh!L33 -> 200
B65: Line 3 | I65: 0 | J65: 5000 | K65: 0 | L65: -5000 | M65: 0 | N65: 0 | U65: -150 | V65: <= | W65: =Mesh!C34 -> 250 | Z65: Line 3 | AG65: 0 | AH65: 5000 | AI65: 0 | AJ65: -5000 | AK65: 0 | AL65: 0 | AS65: -200 | AT65: <= | AU65: =Mesh!L34 -> 200
B66: Line 4 | I66: 0 | J66: 0 | K66: 0 | L66: 5000 | M66: -5000 | N66: 0 | U66: 100 | V66: <= | W66: =Mesh!C35 -> 100 | Z66: Line 4 | AG66: 0 | AH66: 0 | AI66: 0 | AJ66: 5000 | AK66: -5000 | AL66: 0 | AS66: 100 | AT66: <= | AU66: =Mesh!L35 -> 100
B67: Line 5 | I67: 0 | J67: 0 | K67: 0 | L67: 5000 | M67: 0 | N67: -5000 | U67: 50 | V67: <= | W67: =Mesh!C36 -> 200 | Z67: Line 5 | AG67: 0 | AH67: 0 | AI67: 0 | AJ67: 5000 | AK67: 0 | AL67: -5000 | AS67: 50 | AT67: <= | AU67: =Mesh!L36 -> 200
B68: Line 6 | I68: 0 | J68: 0 | K68: 0 | L68: 0 | M68: 5000 | N68: -5000 | U68: -50 | V68: <= | W68: =Mesh!C37 -> 200 | Z68: Line 6 | AG68: 0 | AH68: 0 | AI68: 0 | AJ68: 0 | AK68: 5000 | AL68: -5000 | AS68: -50 | AT68: <= | AU68: =Mesh!L37 -> 200
B71: Line import limit cosntraints | Z71: Line import limit cosntraints
B72: Enforce line rating limit | Z72: Enforce line rating limit
C74: LHS Coefficient | AA74: LHS Coefficient
B75: Constraint index | C75: Unit 1 | D75: Unit 2 | E75: Unit 3 | F75: Unit 4 | G75: Unit 5 | H75: Unit 6 | I75: Theta 1 | J75: Theta 2 | K75: Theta 3 | L75: Theta 4 | M75: Theta 5 | N75: Theta 6 | O75: USE Node 1 | P75: USE Node 2 | Q75: USE Node 3 | R75: USE Node 4 | S75: USE Node 5 | T75: USE Node 6 | U75: LHS | V75: Sense | W75: RHS | Z75: Constraint index | AA75: Unit 1 | AB75: Unit 2 | AC75: Unit 3 | AD75: Unit 4 | AE75: Unit 5 | AF75: Unit 6 | AG75: Theta 1 | AH75: Theta 2 | AI75: Theta 3 | AJ75: Theta 4 | AK75: Theta 5 | AL75: Theta 6 | AM75: USE Node 1 | AN75: USE Node 2 | AO75: USE Node 3 | AP75: USE Node 4 | AQ75: USE Node 5 | AR75: USE Node 6 | AS75: LHS | AT75: Sense | AU75: RHS
B76: Line 1 | I76: =-$E16*F16*$N$16 -> -5000 | J76: =-$E16*G16*$N$16 -> 5000 | K76: 0 | L76: 0 | M76: 0 | N76: 0 | U76: =SUMPRODUCT(C$36:T$36,C76:T76) -> 150 | V76: <= | W76: =Mesh!C32 -> 200 | Z76: Line 1 | AG76: =-$E16*F16*$N$16 -> -5000 | AH76: =-$E16*G16*$N$16 -> 5000 | AI76: 0 | AJ76: 0 | AK76: 0 | AL76: 0 | AS76: =SUMPRODUCT(AA$36:AR$36,AA76:AR76) -> 150 | AT76: <= | AU76: =Mesh!L32 -> 200
B77: Line 2 | I77: =-$E17*F17*$N$16 -> 0 | J77: 5000 | K77: -5000 | L77: 0 | M77: 0 | N77: 0 | U77: =SUMPRODUCT(C$36:T$36,C77:T77) -> 150 | V77: <= | W77: =Mesh!C33 -> 200 | Z77: Line 2 | AG77: =-$E17*F17*$N$16 -> 0 | AH77: 5000 | AI77: -5000 | AJ77: 0 | AK77: 0 | AL77: 0 | AS77: =SUMPRODUCT(AA$36:AR$36,AA77:AR77) -> 150 | AT77: <= | AU77: =Mesh!L33 -> 200
B78: Line 3 | I78: 0 | J78: -5000 | K78: 0 | L78: 5000 | M78: 0 | N78: 0 | U78: 150 | V78: <= | W78: =Mesh!C34 -> 250 | Z78: Line 3 | AG78: 0 | AH78: -5000 | AI78: 0 | AJ78: 5000 | AK78: 0 | AL78: 0 | AS78: 200 | AT78: <= | AU78: =Mesh!L34 -> 200
B79: Line 4 | I79: 0 | J79: 0 | K79: 0 | L79: -5000 | M79: 5000 | N79: 0 | U79: -100 | V79: <= | W79: =Mesh!C35 -> 100 | Z79: Line 4 | AG79: 0 | AH79: 0 | AI79: 0 | AJ79: -5000 | AK79: 5000 | AL79: 0 | AS79: -100 | AT79: <= | AU79: =Mesh!L35 -> 100
B80: Line 5 | I80: 0 | J80: 0 | K80: 0 | L80: -5000 | M80: 0 | N80: 5000 | U80: -50 | V80: <= | W80: =Mesh!C36 -> 200 | Z80: Line 5 | AG80: 0 | AH80: 0 | AI80: 0 | AJ80: -5000 | AK80: 0 | AL80: 5000 | AS80: -50 | AT80: <= | AU80: =Mesh!L36 -> 200
B81: Line 6 | I81: 0 | J81: 0 | K81: 0 | L81: 0 | M81: -5000 | N81: 5000 | U81: 50 | V81: <= | W81: =Mesh!C37 -> 200 | Z81: Line 6 | AG81: 0 | AH81: 0 | AI81: 0 | AJ81: 0 | AK81: -5000 | AL81: 5000 | AS81: 50 | AT81: <= | AU81: =Mesh!L37 -> 200
B84: CRM
B86: Scenario 1 | Z86: Scenario 2
C91: Dispatch | I91: Phase Angles | O91: USE | AA91: Dispatch | AG91: Phase Angles | AM91: USE
B92: Variable specification | C92: Unit 1 | D92: Unit 2 | E92: Unit 3 | F92: Unit 4 | G92: Unit 5 | H92: Unit 6 | I92: Theta 1 | J92: Theta 2 | K92: Theta 3 | L92: Theta 4 | M92: Theta 5 | N92: Theta 6 | O92: USE Node 1 | P92: USE Node 2 | Q92: USE Node 3 | R92: USE Node 4 | S92: USE Node 5 | T92: USE Node 6 | Z92: Variable specification | AA92: Unit 1 | AB92: Unit 2 | AC92: Unit 3 | AD92: Unit 4 | AE92: Unit 5 | AF92: Unit 6 | AG92: Theta 1 | AH92: Theta 2 | AI92: Theta 3 | AJ92: Theta 4 | AK92: Theta 5 | AL92: Theta 6 | AM92: USE Node 1 | AN92: USE Node 2 | AO92: USE Node 3 | AP92: USE Node 4 | AQ92: USE Node 5 | AR92: USE Node 6
B93: Cost coefficient | C93: =TRANSPOSE(Mesh!G48:$G$53)*IF(C94:H94,-1,1) -> 60 | D93: 105 | E93: 50 | F93: 100 | G93: 4 | H93: 10 | O93: =O33 -> 17500 | P93: =P33 -> 17500 | Q93: 17500 | R93: 17500 | S93: 17500 | T93: 17500 | Z93: Cost coefficient | AA93: =TRANSPOSE(Mesh!$P$48:$P$53)*IF(AA94:AF94,-1,1) -> 60 | AB93: 105 | AC93: 50 | AD93: 110 | AE93: 5 | AF93: 10 | AM93: =AM33 -> 17500 | AN93: =AN33 -> 17500 | AO93: 17500 | AP93: 17500 | AQ93: 17500 | AR93: 17500
B94: Is load | C94: =C34 -> FALSE | D94: =D34 -> FALSE | E94: FALSE | F94: FALSE | G94: FALSE | H94: FALSE | Z94: Is load | AA94: =AA34 -> FALSE | AB94: =AB34 -> FALSE | AC94: FALSE | AD94: FALSE | AE94: FALSE | AF94: FALSE
B95: Participation | C95: =TRANSPOSE(Mesh!$F$40:$F$45) -> FALSE | D95: TRUE | E95: FALSE | F95: TRUE | G95: TRUE | H95: TRUE | Z95: Participation | AA95: =TRANSPOSE(Mesh!$O$40:$O$45) -> FALSE | AB95: TRUE | AC95: FALSE | AD95: TRUE | AE95: TRUE | AF95: TRUE
B96: Lowerbound | C96: =IF(C95,C35,C36) -> 200 | D96: =IF(D95,D35,D36) -> 0 | E96: 200 | F96: 0 | G96: 0 | H96: 0 | I96: =I35 -> -1000 | J96: =J35 -> -1000 | K96: -1000 | L96: -1000 | M96: -1000 | N96: -1000 | O96: 0 | P96: 0 | Q96: 0 | R96: 0 | S96: 0 | T96: 0 | Z96: Lowerbound | AA96: =IF(AA95,AA35,AA36) -> 200 | AB96: =IF(AB95,AB35,AB36) -> 0 | AC96: =IF(AC95,AC35,AC36) -> 200 | AD96: =IF(AD95,AD35,AD36) -> 0 | AE96: =IF(AE95,AE35,AE36) -> 0 | AF96: =IF(AF95,AF35,AF36) -> 0 | AG96: =AG35 -> -1000 | AH96: =AH35 -> -1000 | AI96: -1000 | AJ96: -1000 | AK96: -1000 | AL96: -1000 | AM96: 0 | AN96: 0 | AO96: 0 | AP96: 0 | AQ96: 0 | AR96: 0
B97: Solution | C97: 200 | D97: 0 | E97: 200 | F97: 50 | G97: 150 | H97: 250 | I97: -0.03 | J97: 0 | K97: -0.03 | L97: 0.03 | M97: 0.01 | N97: 0.01 | O97: 0 | P97: 0 | Q97: 0 | R97: 0 | S97: 0 | T97: 0 | Z97: Solution | AA97: 200 | AB97: 25 | AC97: 200 | AD97: 0 | AE97: 125 | AF97: 300 | AG97: -0.03 | AH97: 0 | AI97: -0.03 | AJ97: 0.035 | AK97: 0.015 | AL97: 0.01 | AM97: 0 | AN97: 0 | AO97: 0 | AP97: 0 | AQ97: 0 | AR97: 0
B98: Upperbound | C98: =IF(C95,C37,C36) -> 200 | D98: =IF(D95,D37,D36) -> 300 | E98: 200 | F98: 400 | G98: 200 | H98: 250 | I98: =I37 -> 1000 | J98: =J37 -> 1000 | K98: 1000 | L98: 1000 | M98: 1000 | N98: 1000 | O98: 50 | P98: 150 | Q98: 50 | R98: 400 | S98: 50 | T98: 150 | Z98: Upperbound | AA98: =IF(AA95,AA37,AA36) -> 200 | AB98: =IF(AB95,AB37,AB36) -> 300 | AC98: 200 | AD98: 300 | AE98: 200 | AF98: 300 | AG98: =AG37 -> 1000 | AH98: =AH37 -> 1000 | AI98: 1000 | AJ98: 1000 | AK98: 1000 | AL98: 1000 | AM98: 50 | AN98: 150 | AO98: 50 | AP98: 400 | AQ98: 50 | AR98: 150
B101: Sense | C101: Minimisation | Z101: Sense | AA101: Minimisation
B103: Objective value | C103: =SUMPRODUCT(C93:T93,C97:T97) -> 30100 | Z103: Objective value | AA103: =SUMPRODUCT(AA93:AR93,AA97:AR97) -> 28250
B106: Supply demand balance constraints | Z106: Supply demand balance constraints
B107: Enforce dispatch to meet demand | Z107: Enforce dispatch to meet demand
C109: LHS Coefficient | AA109: LHS Coefficient
B110: Constraint index | C110: Unit 1 | D110: Unit 2 | E110: Unit 3 | F110: Unit 4 | G110: Unit 5 | H110: Unit 6 | I110: Theta 1 | J110: Theta 2 | K110: Theta 3 | L110: Theta 4 | M110: Theta 5 | N110: Theta 6 | O110: USE Node 1 | P110: USE Node 2 | Q110: USE Node 3 | R110: USE Node 4 | S110: USE Node 5 | T110: USE Node 6 | U110: LHS | V110: Sense | W110: RHS | X110: Dual | Z110: Constraint index | AA110: Unit 1 | AB110: Unit 2 | AC110: Unit 3 | AD110: Unit 4 | AE110: Unit 5 | AF110: Unit 6 | AG110: Theta 1 | AH110: Theta 2 | AI110: Theta 3 | AJ110: Theta 4 | AK110: Theta 5 | AL110: Theta 6 | AM110: USE Node 1 | AN110: USE Node 2 | AO110: USE Node 3 | AP110: USE Node 4 | AQ110: USE Node 5 | AR110: USE Node 6 | AS110: LHS | AT110: Sense | AU110: RHS | AV110: Dual
B111: Node 1 | C111: =C50 -> 1 | I111: =I50 -> 5000 | J111: =J50 -> -5000 | K111: 0 | L111: 0 | M111: 0 | N111: 0 | O111: =O50 -> 1 | U111: =SUMPRODUCT(C$97:T$97,C111:T111) -> 50 | V111: = | W111: =W50 -> 50 | X111: 100 | Z111: Node 1 | AA111: =AA50 -> 1 | AG111: =AG50 -> 5000 | AH111: =AH50 -> -5000 | AI111: 0 | AJ111: 0 | AK111: 0 | AL111: 0 | AM111: =AM50 -> 1 | AS111: =SUMPRODUCT(AA$97:AR$97,AA111:AR111) -> 50 | AT111: = | AU111: =AU50 -> 50 | AV111: 105
B112: Node 2 | D112: =D51 -> 1 | I112: =I51 -> -5000 | J112: 15000 | K112: -5000 | L112: -5000 | M112: 0 | N112: 0 | P112: =P51 -> 1 | U112: =SUMPRODUCT(C$97:T$97,C112:T112) -> 150 | V112: = | W112: =W51 -> 150 | X112: 100 | Z112: Node 2 | AB112: =AB51 -> 1 | AG112: =AG51 -> -5000 | AH112: 15000 | AI112: -5000 | AJ112: -5000 | AK112: 0 | AL112: 0 | AN112: =AN51 -> 1 | AS112: =SUMPRODUCT(AA$97:AR$97,AA112:AR112) -> 150 | AT112: = | AU112: =AU51 -> 150 | AV112: 105
B113: Node 3 | E113: =E52 -> 1 | I113: 0 | J113: -5000 | K113: 5000 | L113: 0 | M113: 0 | N113: 0 | Q113: =Q52 -> 1 | U113: 50 | V113: = | W113: 50 | X113: 100 | Z113: Node 3 | AC113: =AC52 -> 1 | AG113: =AG52 -> 0 | AH113: -5000 | AI113: 5000 | AJ113: 0 | AK113: 0 | AL113: 0 | AO113: =AO52 -> 1 | AS113: 50 | AT113: = | AU113: 50 | AV113: 105
B114: Node 4 | F114: =F53 -> 1 | I114: 0 | J114: -5000 | K114: 0 | L114: 15000 | M114: -5000 | N114: -5000 | R114: =R53 -> 1 | U114: 400 | V114: = | W114: 400 | X114: 100 | Z114: Node 4 | AD114: =AD53 -> 1 | AG114: =AG53 -> 0 | AH114: -5000 | AI114: 0 | AJ114: 15000 | AK114: -5000 | AL114: -5000 | AP114: =AP53 -> 1 | AS114: 400 | AT114: = | AU114: 400 | AV114: 105
B115: Node 5 | G115: =G54 -> 1 | I115: 0 | J115: 0 | K115: 0 | L115: -5000 | M115: 10000 | N115: -5000 | S115: =S54 -> 1 | U115: 50 | V115: = | W115: 50 | X115: 4 | Z115: Node 5 | AE115: =AE54 -> 1 | AG115: =AG54 -> 0 | AH115: 0 | AI115: 0 | AJ115: -5000 | AK115: 10000 | AL115: -5000 | AQ115: =AQ54 -> 1 | AS115: 50 | AT115: = | AU115: 50 | AV115: 5
B116: Node 6 | H116: =H55 -> 1 | I116: 0 | J116: 0 | K116: 0 | L116: -5000 | M116: -5000 | N116: 10000 | T116: =T55 -> 1 | U116: 150 | V116: = | W116: 150 | X116: 52 | Z116: Node 6 | AF116: =AF55 -> 1 | AG116: =AG55 -> 0 | AH116: 0 | AI116: 0 | AJ116: -5000 | AK116: -5000 | AL116: 10000 | AR116: =AR55 -> 1 | AS116: 150 | AT116: = | AU116: 150 | AV116: 55
B119: Line export limit constraints | Z119: Line export limit constraints
B120: Enforce line rating limit | Z120: Enforce line rating limit
C122: LHS Coefficient | AA122: LHS Coefficient
B123: Constraint index | C123: Unit 1 | D123: Unit 2 | E123: Unit 3 | F123: Unit 4 | G123: Unit 5 | H123: Unit 6 | I123: Theta 1 | J123: Theta 2 | K123: Theta 3 | L123: Theta 4 | M123: Theta 5 | N123: Theta 6 | O123: USE Node 1 | P123: USE Node 2 | Q123: USE Node 3 | R123: USE Node 4 | S123: USE Node 5 | T123: USE Node 6 | U123: LHS | V123: Sense | W123: RHS | Z123: Constraint index | AA123: Unit 1 | AB123: Unit 2 | AC123: Unit 3 | AD123: Unit 4 | AE123: Unit 5 | AF123: Unit 6 | AG123: Theta 1 | AH123: Theta 2 | AI123: Theta 3 | AJ123: Theta 4 | AK123: Theta 5 | AL123: Theta 6 | AM123: USE Node 1 | AN123: USE Node 2 | AO123: USE Node 3 | AP123: USE Node 4 | AQ123: USE Node 5 | AR123: USE Node 6 | AS123: LHS | AT123: Sense | AU123: RHS
B124: Line 1 | I124: =I63 -> 5000 | J124: =J63 -> -5000 | K124: 0 | L124: 0 | M124: 0 | N124: 0 | U124: =SUMPRODUCT(C$97:T$97,C124:T124) -> -150 | V124: <= | W124: =W63 -> 200 | Z124: Line 1 | AG124: =AG63 -> 5000 | AH124: =AH63 -> -5000 | AI124: 0 | AJ124: 0 | AK124: 0 | AL124: 0 | AS124: =SUMPRODUCT(AA$97:AR$97,AA124:AR124) -> -150 | AT124: <= | AU124: =AU63 -> 200
B125: Line 2 | I125: =I64 -> 0 | J125: -5000 | K125: 5000 | L125: 0 | M125: 0 | N125: 0 | U125: =SUMPRODUCT(C$97:T$97,C125:T125) -> -150 | V125: <= | W125: =W64 -> 200 | Z125: Line 2 | AG125: =AG64 -> 0 | AH125: -5000 | AI125: 5000 | AJ125: 0 | AK125: 0 | AL125: 0 | AS125: =SUMPRODUCT(AA$97:AR$97,AA125:AR125) -> -150 | AT125: <= | AU125: =AU64 -> 200
B126: Line 3 | I126: 0 | J126: 5000 | K126: 0 | L126: -5000 | M126: 0 | N126: 0 | U126: -150 | V126: <= | W126: 250 | Z126: Line 3 | AG126: =AG65 -> 0 | AH126: 5000 | AI126: 0 | AJ126: -5000 | AK126: 0 | AL126: 0 | AS126: -175 | AT126: <= | AU126: 200
B127: Line 4 | I127: 0 | J127: 0 | K127: 0 | L127: 5000 | M127: -5000 | N127: 0 | U127: 100 | V127: <= | W127: 100 | Z127: Line 4 | AG127: =AG66 -> 0 | AH127: 0 | AI127: 0 | AJ127: 5000 | AK127: -5000 | AL127: 0 | AS127: 100 | AT127: <= | AU127: 100
B128: Line 5 | I128: 0 | J128: 0 | K128: 0 | L128: 5000 | M128: 0 | N128: -5000 | U128: 100 | V128: <= | W128: 200 | Z128: Line 5 | AG128: =AG67 -> 0 | AH128: 0 | AI128: 0 | AJ128: 5000 | AK128: 0 | AL128: -5000 | AS128: 125 | AT128: <= | AU128: 200
B129: Line 6 | I129: 0 | J129: 0 | K129: 0 | L129: 0 | M129: 5000 | N129: -5000 | U129: -9.099920817e-11 | V129: <= | W129: 200 | Z129: Line 6 | AG129: =AG68 -> 0 | AH129: 0 | AI129: 0 | AJ129: 0 | AK129: 5000 | AL129: -5000 | AS129: 25 | AT129: <= | AU129: 200
B132: Line import limit cosntraints | Z132: Line import limit cosntraints
B133: Enforce line rating limit | Z133: Enforce line rating limit
C135: LHS Coefficient | AA135: LHS Coefficient
B136: Constraint index | C136: Unit 1 | D136: Unit 2 | E136: Unit 3 | F136: Unit 4 | G136: Unit 5 | H136: Unit 6 | I136: Theta 1 | J136: Theta 2 | K136: Theta 3 | L136: Theta 4 | M136: Theta 5 | N136: Theta 6 | O136: USE Node 1 | P136: USE Node 2 | Q136: USE Node 3 | R136: USE Node 4 | S136: USE Node 5 | T136: USE Node 6 | U136: LHS | V136: Sense | W136: RHS | Z136: Constraint index | AA136: Unit 1 | AB136: Unit 2 | AC136: Unit 3 | AD136: Unit 4 | AE136: Unit 5 | AF136: Unit 6 | AG136: Theta 1 | AH136: Theta 2 | AI136: Theta 3 | AJ136: Theta 4 | AK136: Theta 5 | AL136: Theta 6 | AM136: USE Node 1 | AN136: USE Node 2 | AO136: USE Node 3 | AP136: USE Node 4 | AQ136: USE Node 5 | AR136: USE Node 6 | AS136: LHS | AT136: Sense | AU136: RHS
B137: Line 1 | I137: =I76 -> -5000 | J137: =J76 -> 5000 | K137: 0 | L137: 0 | M137: 0 | N137: 0 | U137: =SUMPRODUCT(C$97:T$97,C137:T137) -> 150 | V137: <= | W137: =W76 -> 200 | Z137: Line 1 | AG137: =AG76 -> -5000 | AH137: =AH76 -> 5000 | AI137: 0 | AJ137: 0 | AK137: 0 | AL137: 0 | AS137: =SUMPRODUCT(AA$97:AR$97,AA137:AR137) -> 150 | AT137: <= | AU137: =AU76 -> 200
B138: Line 2 | I138: =I77 -> 0 | J138: 5000 | K138: -5000 | L138: 0 | M138: 0 | N138: 0 | U138: =SUMPRODUCT(C$97:T$97,C138:T138) -> 150 | V138: <= | W138: =W77 -> 200 | Z138: Line 2 | AG138: =AG77 -> 0 | AH138: 5000 | AI138: -5000 | AJ138: 0 | AK138: 0 | AL138: 0 | AS138: =SUMPRODUCT(AA$97:AR$97,AA138:AR138) -> 150 | AT138: <= | AU138: =AU77 -> 200
B139: Line 3 | I139: 0 | J139: -5000 | K139: 0 | L139: 5000 | M139: 0 | N139: 0 | U139: 150 | V139: <= | W139: 250 | Z139: Line 3 | AG139: =AG78 -> 0 | AH139: -5000 | AI139: 0 | AJ139: 5000 | AK139: 0 | AL139: 0 | AS139: 175 | AT139: <= | AU139: 200
B140: Line 4 | I140: 0 | J140: 0 | K140: 0 | L140: -5000 | M140: 5000 | N140: 0 | U140: -100 | V140: <= | W140: 100 | Z140: Line 4 | AG140: =AG79 -> 0 | AH140: 0 | AI140: 0 | AJ140: -5000 | AK140: 5000 | AL140: 0 | AS140: -100 | AT140: <= | AU140: 100
B141: Line 5 | I141: 0 | J141: 0 | K141: 0 | L141: -5000 | M141: 0 | N141: 5000 | U141: -100 | V141: <= | W141: 200 | Z141: Line 5 | AG141: =AG80 -> 0 | AH141: 0 | AI141: 0 | AJ141: -5000 | AK141: 0 | AL141: 5000 | AS141: -125 | AT141: <= | AU141: 200
B142: Line 6 | I142: 0 | J142: 0 | K142: 0 | L142: 0 | M142: -5000 | N142: 5000 | U142: 9.099920817e-11 | V142: <= | W142: 200 | Z142: Line 6 | AG142: =AG81 -> 0 | AH142: 0 | AI142: 0 | AJ142: 0 | AK142: -5000 | AL142: 5000 | AS142: -25 | AT142: <= | AU142: 200
B144: Sheet end
